Workbook

Sheet 返済条件入力
B3: 返済計画表 返済条件入力
C5: ▼返済条件入力▼
B6: 借入金額 | C6: 100000000 | D6: 円
B8: 金利 | C8: 0.05 | D8: 年
B10: 返済期間 | C10: 10 | D10: 年
B13: 返済計画表 集計結果
B15: 月返済額 元利均等返済方式 | C15: =PMT(C8/12,C10*12,C6) -> -1060655.152 | D15: 円
B16: 返済計画表 元利均等返済方式 | C16: シート移動
B17: 返済計画表 元金均等返済方式 | C17: シート移動

Sheet 返済計画表・元利均等返済方式
B2: 返済計画表 元利均等返済方式
B3: =返済条件入力!B6 -> 借入金額 | C3: =返済条件入力!C6 -> 100000000 | G3: =返済条件入力!B8 -> 金利 | H3: =返済条件入力!C8 -> 0.05 | L3: 返済回数 | M3: =返済条件入力!C10*12 -> 120 | Q3: 月返済額 | R3: =返済条件入力!C15 -> -1060655.152
B5: 支払回 | C5: 返済額 | D5: 元金 | E5: 利息 | G5: 支払回 | H5: 返済額 | I5: 元金 | J5: 利息 | L5: 支払回 | M5: 返済額 | N5: 元金 | O5: 利息 | Q5: 支払回 | R5: 返済額 | S5: 元金 | T5: 利息 | V5: 支払回 | W5: 返済額 | X5: 元金 | Y5: 利息
B6: 1 | C6: =+返済条件入力!$C$15 -> -1060655.152 | D6: =+PPMT(返済条件入力!$C$8/12,B6,返済条件入力!$C$10*12,返済条件入力!$C$6) -> -643988.4857 | E6: =+C6-D6 -> -416666.6667 | G6: 51 | H6: =IF(AC6<0,"-",+返済条件入力!$C$15) -> -1060655.152 | I6: =IF(AC6<0,"-",+PPMT(返済条件入力!$C$8/12,G6,返済条件入力!$C$10*12,返済条件入力!$C$6)) -> -792808.2222 | J6: =IF(AC6<0,"-",+H6-I6) -> -267846.9302 | L6: 101 | M6: =IF(AB6<0,"-",+返済条件入力!$C$15) -> -1060655.152 | N6: =IF(AB6<0,"-",+PPMT(返済条件入力!$C$8/12,L6,返済条件入力!$C$10*12,返済条件入力!$C$6)) -> -976018.8127 | O6: =IF(AB6<0,"-",+M6-N6) -> -84636.33972 | Q6: 151 | R6: =IF(AA6<0,"-",+返済条件入力!$C$15) -> - | S6: =IF(AA6<0,"-",+PPMT(返済条件入力!$C$8/12,Q6,返済条件入力!$C$10*12,返済条件入力!$C$6)) -> - | T6: =IF(AA6<0,"-",+R6-S6) -> - | V6: 201 | W6: =IF(Z6<0,"-",+返済条件入力!$C$15) -> - | X6: =IF(Z6<0,"-",+PPMT(返済条件入力!$C$8/12,V6,返済条件入力!$C$10*12,返済条件入力!$C$6)) -> - | Y6: =IF(Z6<0,"-",+W6-X6) -> - | Z6: =+M$3-V6 -> -81 | AA6: =+M$3-Q6 -> -31 | AB6: =+M$3-L6 -> 19 | AC6: =+M$3-G6 -> 69 | AD6: =+M$3-B6 -> 119
B7: 2 | C7: =IF(AD6<0,"-",+返済条件入力!$C$15) -> -1060655.152 | D7: =IF(AD6<0,"-",+PPMT(返済条件入力!$C$8/12,B7,返済条件入力!$C$10*12,返済条件入力!$C$6)) -> -646671.7711 | E7: =IF(AD6<0,"-",+C7-D7) -> -413983.3813 | G7: 52 | H7: =IF(AC7<0,"-",+返済条件入力!$C$15) -> -1060655.152 | I7: =IF(AC7<0,"-",+PPMT(返済条件入力!$C$8/12,G7,返済条件入力!$C$10*12,返済条件入力!$C$6)) -> -796111.5898 | J7: =IF(AC7<0,"-",+H7-I7) -> -264543.5626 | L7: 102 | M7: =IF(AB7<0,"-",+返済条件入力!$C$15) -> -1060655.152 | N7: =IF(AB7<0,"-",+PPMT(返済条件入力!$C$8/12,L7,返済条件入力!$C$10*12,返済条件入力!$C$6)) -> -980085.5577 | O7: =IF(AB7<0,"-",+M7-N7) -> -80569.59467 | Q7: 152 | R7: =IF(AA7<0,"-",+返済条件入力!$C$15) -> - | S7: =IF(AA7<0,"-",+PPMT(返済条件入力!$C$8/12,Q7,返済条件入力!$C$10*12,返済条件入力!$C$6)) -> - | T7: =IF(AA7<0,"-",+R7-S7) -> - | V7: 202 | W7: =IF(Z7<0,"-",+返済条件入力!$C$15) -> - | X7: =IF(Z7<0,"-",+PPMT(返済条件入力!$C$8/12,V7,返済条件入力!$C$10*12,返済条件入力!$C$6)) -> - | Y7: =IF(Z7<0,"-",+W7-X7) -> - | Z7: =+M$3-V7 -> -82 | AA7: =+M$3-Q7 -> -32 | AB7: =+M$3-L7 -> 18 | AC7: =+M$3-G7 -> 68 | AD7: =+M$3-B7 -> 118
B8: 3 | C8: =IF(AD7<0,"-",+返済条件入力!$C$15) -> -1060655.152 | D8: =IF(AD7<0,"-",+PPMT(返済条件入力!$C$8/12,B8,返済条件入力!$C$10*12,返済条件入力!$C$6)) -> -649366.2368 | E8: =IF(AD7<0,"-",+C8-D8) -> -411288.9156 | G8: 53 | H8: =IF(AC8<0,"-",+返済条件入力!$C$15) -> -1060655.152 | I8: =IF(AC8<0,"-",+PPMT(返済条件入力!$C$8/12,G8,返済条件入力!$C$10*12,返済条件入力!$C$6)) -> -799428.7214 | J8: -261226.431 | L8: 103 | M8: =IF(AB8<0,"-",+返済条件入力!$C$15) -> -1060655.152 | N8: =IF(AB8<0,"-",+PPMT(返済条件入力!$C$8/12,L8,返済条件入力!$C$10*12,返済条件入力!$C$6)) -> -984169.2475 | O8: -76485.90485 | Q8: 153 | R8: =IF(AA8<0,"-",+返済条件入力!$C$15) -> - | S8: =IF(AA8<0,"-",+PPMT(返済条件入力!$C$8/12,Q8,返済条件入力!$C$10*12,返済条件入力!$C$6)) -> - | T8: - | V8: 203 | W8: =IF(Z8<0,"-",+返済条件入力!$C$15) -> - | X8: =IF(Z8<0,"-",+PPMT(返済条件入力!$C$8/12,V8,返済条件入力!$C$10*12,返済条件入力!$C$6)) -> - | Y8: - | Z8: -83 | AA8: -33 | AB8: 17 | AC8: 67 | AD8: 117
B9: 4 | C9: =IF(AD8<0,"-",+返済条件入力!$C$15) -> -1060655.152 | D9: =IF(AD8<0,"-",+PPMT(返済条件入力!$C$8/12,B9,返済条件入力!$C$10*12,返済条件入力!$C$6)) -> -652071.9294 | E9: -408583.2229 | G9: 54 | H9: =IF(AC9<0,"-",+返済条件入力!$C$15) -> -1060655.152 | I9: =IF(AC9<0,"-",+PPMT(返済条件入力!$C$8/12,G9,返済条件入力!$C$10*12,返済条件入力!$C$6)) -> -802759.6744 | J9: -257895.478 | L9: 104 | M9: =IF(AB9<0,"-",+返済条件入力!$C$15) -> -1060655.152 | N9: =IF(AB9<0,"-",+PPMT(返済条件入力!$C$8/12,L9,返済条件入力!$C$10*12,返済条件入力!$C$6)) -> -988269.9527 | O9: -72385.19965 | Q9: 154 | R9: =IF(AA9<0,"-",+返済条件入力!$C$15) -> - | S9: =IF(AA9<0,"-",+PPMT(返済条件入力!$C$8/12,Q9,返済条件入力!$C$10*12,返済条件入力!$C$6)) -> - | T9: - | V9: 204 | W9: =IF(Z9<0,"-",+返済条件入力!$C$15) -> - | X9: =IF(Z9<0,"-",+PPMT(返済条件入力!$C$8/12,V9,返済条件入力!$C$10*12,返済条件入力!$C$6)) -> - | Y9: - | Z9: -84 | AA9: -34 | AB9: 16 | AC9: 66 | AD9: 116
B10: 5 | C10: =IF(AD9<0,"-",+返済条件入力!$C$15) -> -1060655.152 | D10: =IF(AD9<0,"-",+PPMT(返済条件入力!$C$8/12,B10,返済条件入力!$C$10*12,返済条件入力!$C$6)) -> -654788.8958 | E10: -405866.2566 | G10: 55 | H10: =IF(AC10<0,"-",+返済条件入力!$C$15) -> -1060655.152 | I10: =IF(AC10<0,"-",+PPMT(返済条件入力!$C$8/12,G10,返済条件入力!$C$10*12,返済条件入力!$C$6)) -> -806104.5064 | J10: -254550.646 | L10: 105 | M10: =IF(AB10<0,"-",+返済条件入力!$C$15) -> -1060655.152 | N10: =IF(AB10<0,"-",+PPMT(返済条件入力!$C$8/12,L10,返済条件入力!$C$10*12,返済条件入力!$C$6)) -> -992387.7442 | O10: -68267.40818 | Q10: 155 | R10: =IF(AA10<0,"-",+返済条件入力!$C$15) -> - | S10: =IF(AA10<0,"-",+PPMT(返済条件入力!$C$8/12,Q10,返済条件入力!$C$10*12,返済条件入力!$C$6)) -> - | T10: - | V10: 205 | W10: =IF(Z10<0,"-",+返済条件入力!$C$15) -> - | X10: =IF(Z10<0,"-",+PPMT(返済条件入力!$C$8/12,V10,返済条件入力!$C$10*12,返済条件入力!$C$6)) -> - | Y10: - | Z10: -85 | AA10: -35 | AB10: 15 | AC10: 65 | AD10: 115
B11: 6 | C11: =IF(AD10<0,"-",+返済条件入力!$C$15) -> -1060655.152 | D11: =IF(AD10<0,"-",+PPMT(返済条件入力!$C$8/12,B11,返済条件入力!$C$10*12,返済条件入力!$C$6)) -> -657517.1829 | E11: -403137.9695 | G11: 56 | H11: =IF(AC11<0,"-",+返済条件入力!$C$15) -> -1060655.152 | I11: =IF(AC11<0,"-",+PPMT(返済条件入力!$C$8/12,G11,返済条件入力!$C$10*12,返済条件入力!$C$6)) -> -809463.2752 | J11: -251191.8772 | L11: 106 | M11: =IF(AB11<0,"-",+返済条件入力!$C$15) -> -1060655.152 | N11: =IF(AB11<0,"-",+PPMT(返済条件入力!$C$8/12,L11,返済条件入力!$C$10*12,返済条件入力!$C$6)) -> -996522.6931 | O11: -64132.45925 | Q11: 156 | R11: =IF(AA11<0,"-",+返済条件入力!$C$15) -> - | S11: =IF(AA11<0,"-",+PPMT(返済条件入力!$C$8/12,Q11,返済条件入力!$C$10*12,返済条件入力!$C$6)) -> - | T11: - | V11: 206 | W11: =IF(Z11<0,"-",+返済条件入力!$C$15) -> - | X11: =IF(Z11<0,"-",+PPMT(返済条件入力!$C$8/12,V11,返済条件入力!$C$10*12,返済条件入力!$C$6)) -> - | Y11: - | Z11: -86 | AA11: -36 | AB11: 14 | AC11: 64 | AD11: 114
B12: 7 | C12: =IF(AD11<0,"-",+返済条件入力!$C$15) -> -1060655.152 | D12: =IF(AD11<0,"-",+PPMT(返済条件入力!$C$8/12,B12,返済条件入力!$C$10*12,返済条件入力!$C$6)) -> -660256.8378 | E12: -400398.3146 | G12: 57 | H12: =IF(AC12<0,"-",+返済条件入力!$C$15) -> -1060655.152 | I12: =IF(AC12<0,"-",+PPMT(返済条件入力!$C$8/12,G12,返済条件入力!$C$10*12,返済条件入力!$C$6)) -> -812836.0388 | J12: -247819.1136 | L12: 107 | M12: =IF(AB12<0,"-",+返済条件入力!$C$15) -> -1060655.152 | N12: =IF(AB12<0,"-",+PPMT(返済条件入力!$C$8/12,L12,返済条件入力!$C$10*12,返済条件入力!$C$6)) -> -1000674.871 | O12: -59980.28136 | Q12: 157 | R12: =IF(AA12<0,"-",+返済条件入力!$C$15) -> - | S12: =IF(AA12<0,"-",+PPMT(返済条件入力!$C$8/12,Q12,返済条件入力!$C$10*12,返済条件入力!$C$6)) -> - | T12: - | V12: 207 | W12: =IF(Z12<0,"-",+返済条件入力!$C$15) -> - | X12: =IF(Z12<0,"-",+PPMT(返済条件入力!$C$8/12,V12,返済条件入力!$C$10*12,返済条件入力!$C$6)) -> - | Y12: - | Z12: -87 | AA12: -37 | AB12: 13 | AC12: 63 | AD12: 113
B13: 8 | C13: =IF(AD12<0,"-",+返済条件入力!$C$15) -> -1060655.152 | D13: =IF(AD12<0,"-",+PPMT(返済条件入力!$C$8/12,B13,返済条件入力!$C$10*12,返済条件入力!$C$6)) -> -663007.908 | E13: -397647.2444 | G13: 58 | H13: =IF(AC13<0,"-",+返済条件入力!$C$15) -> -1060655.152 | I13: =IF(AC13<0,"-",+PPMT(返済条件入力!$C$8/12,G13,返済条件入力!$C$10*12,返済条件入力!$C$6)) -> -816222.8557 | J13: -244432.2967 | L13: 108 | M13: =IF(AB13<0,"-",+返済条件入力!$C$15) -> -1060655.152 | N13: =IF(AB13<0,"-",+PPMT(返済条件入力!$C$8/12,L13,返済条件入力!$C$10*12,返済条件入力!$C$6)) -> -1004844.35 | O13: -55810.80273 | Q13: 158 | R13: =IF(AA13<0,"-",+返済条件入力!$C$15) -> - | S13: =IF(AA13<0,"-",+PPMT(返済条件入力!$C$8/12,Q13,返済条件入力!$C$10*12,返済条件入力!$C$6)) -> - | T13: - | V13: 208 | W13: =IF(Z13<0,"-",+返済条件入力!$C$15) -> - | X13: =IF(Z13<0,"-",+PPMT(返済条件入力!$C$8/12,V13,返済条件入力!$C$10*12,返済条件入力!$C$6)) -> - | Y13: - | Z13: -88 | AA13: -38 | AB13: 12 | AC13: 62 | AD13: 112
B14: 9 | C14: =IF(AD13<0,"-",+返済条件入力!$C$15) -> -1060655.152 | D14: =IF(AD13<0,"-",+PPMT(返済条件入力!$C$8/12,B14,返済条件入力!$C$10*12,返済条件入力!$C$6)) -> -665770.4409 | E14: -394884.7115 | G14: 59 | H14: =IF(AC14<0,"-",+返済条件入力!$C$15) -> -1060655.152 | I14: =IF(AC14<0,"-",+PPMT(返済条件入力!$C$8/12,G14,返済条件入力!$C$10*12,返済条件入力!$C$6)) -> -819623.7842 | J14: -241031.3682 | L14: 109 | M14: =IF(AB14<0,"-",+返済条件入力!$C$15) -> -1060655.152 | N14: =IF(AB14<0,"-",+PPMT(返済条件入力!$C$8/12,L14,返済条件入力!$C$10*12,返済条件入力!$C$6)) -> -1009031.201 | O14: -51623.95127 | Q14: 159 | R14: =IF(AA14<0,"-",+返済条件入力!$C$15) -> - | S14: =IF(AA14<0,"-",+PPMT(返済条件入力!$C$8/12,Q14,返済条件入力!$C$10*12,返済条件入力!$C$6)) -> - | T14: - | V14: 209 | W14: =IF(Z14<0,"-",+返済条件入力!$C$15) -> - | X14: =IF(Z14<0,"-",+PPMT(返済条件入力!$C$8/12,V14,返済条件入力!$C$10*12,返済条件入力!$C$6)) -> - | Y14: - | Z14: -89 | AA14: -39 | AB14: 11 | AC14: 61 | AD14: 111
B15: 10 | C15: =IF(AD14<0,"-",+返済条件入力!$C$15) -> -1060655.152 | D15: =IF(AD14<0,"-",+PPMT(返済条件入力!$C$8/12,B15,返済条件入力!$C$10*12,返済条件入力!$C$6)) -> -668544.4844 | E15: -392110.668 | G15: 60 | H15: =IF(AC15<0,"-",+返済条件入力!$C$15) -> -1060655.152 | I15: =IF(AC15<0,"-",+PPMT(返済条件入力!$C$8/12,G15,返済条件入力!$C$10*12,返済条件入力!$C$6)) -> -823038.8833 | J15: -237616.2691 | L15: 110 | M15: =IF(AB15<0,"-",+返済条件入力!$C$15) -> -1060655.152 | N15: =IF(AB15<0,"-",+PPMT(返済条件入力!$C$8/12,L15,返済条件入力!$C$10*12,返済条件入力!$C$6)) -> -1013235.498 | O15: -47419.6546 | Q15: 160 | R15: =IF(AA15<0,"-",+返済条件入力!$C$15) -> - | S15: =IF(AA15<0,"-",+PPMT(返済条件入力!$C$8/12,Q15,返済条件入力!$C$10*12,返済条件入力!$C$6)) -> - | T15: - | V15: 210 | W15: =IF(Z15<0,"-",+返済条件入力!$C$15) -> - | X15: =IF(Z15<0,"-",+PPMT(返済条件入力!$C$8/12,V15,返済条件入力!$C$10*12,返済条件入力!$C$6)) -> - | Y15: - | Z15: -90 | AA15: -40 | AB15: 10 | AC15: 60 | AD15: 110
B16: 11 | C16: =IF(AD15<0,"-",+返済条件入力!$C$15) -> -1060655.152 | D16: =IF(AD15<0,"-",+PPMT(返済条件入力!$C$8/12,B16,返済条件入力!$C$10*12,返済条件入力!$C$6)) -> -671330.0864 | E16: -389325.0659 | G16: 61 | H16: =IF(AC16<0,"-",+返済条件入力!$C$15) -> -1060655.152 | I16: =IF(AC16<0,"-",+PPMT(返済条件入力!$C$8/12,G16,返済条件入力!$C$10*12,返済条件入力!$C$6)) -> -826468.212 | J16: -234186.9404 | L16: 111 | M16: =IF(AB16<0,"-",+返済条件入力!$C$15) -> -1060655.152 | N16: =IF(AB16<0,"-",+PPMT(返済条件入力!$C$8/12,L16,返済条件入力!$C$10*12,返済条件入力!$C$6)) -> -1017457.312 | O16: -43197.84003 | Q16: 161 | R16: =IF(AA16<0,"-",+返済条件入力!$C$15) -> - | S16: =IF(AA16<0,"-",+PPMT(返済条件入力!$C$8/12,Q16,返済条件入力!$C$10*12,返済条件入力!$C$6)) -> - | T16: - | V16: 211 | W16: =IF(Z16<0,"-",+返済条件入力!$C$15) -> - | X16: =IF(Z16<0,"-",+PPMT(返済条件入力!$C$8/12,V16,返済条件入力!$C$10*12,返済条件入力!$C$6)) -> - | Y16: - | Z16: -91 | AA16: -41 | AB16: 9 | AC16: 59 | AD16: 109
B17: 12 | C17: =IF(AD16<0,"-",+返済条件入力!$C$15) -> -1060655.152 | D17: =IF(AD16<0,"-",+PPMT(返済条件入力!$C$8/12,B17,返済条件入力!$C$10*12,返済条件入力!$C$6)) -> -674127.2951 | E17: -386527.8573 | G17: 62 | H17: =IF(AC17<0,"-",+返済条件入力!$C$15) -> -1060655.152 | I17: =IF(AC17<0,"-",+PPMT(返済条件入力!$C$8/12,G17,返済条件入力!$C$10*12,返済条件入力!$C$6)) -> -829911.8296 | J17: -230743.3228 | L17: 112 | M17: =IF(AB17<0,"-",+返済条件入力!$C$15) -> -1060655.152 | N17: =IF(AB17<0,"-",+PPMT(返済条件入力!$C$8/12,L17,返済条件入力!$C$10*12,返済条件入力!$C$6)) -> -1021696.718 | O17: -38958.43456 | Q17: 162 | R17: =IF(AA17<0,"-",+返済条件入力!$C$15) -> - | S17: =IF(AA17<0,"-",+PPMT(返済条件入力!$C$8/12,Q17,返済条件入力!$C$10*12,返済条件入力!$C$6)) -> - | T17: - | V17: 212 | W17: =IF(Z17<0,"-",+返済条件入力!$C$15) -> - | X17: =IF(Z17<0,"-",+PPMT(返済条件入力!$C$8/12,V17,返済条件入力!$C$10*12,返済条件入力!$C$6)) -> - | Y17: - | Z17: -92 | AA17: -42 | AB17: 8 | AC17: 58 | AD17: 108
B18: 13 | C18: =IF(AD17<0,"-",+返済条件入力!$C$15) -> -1060655.152 | D18: =IF(AD17<0,"-",+PPMT(返済条件入力!$C$8/12,B18,返済条件入力!$C$10*12,返済条件入力!$C$6)) -> -676936.1589 | E18: -383718.9935 | G18: 63 | H18: =IF(AC18<0,"-",+返済条件入力!$C$15) -> -1060655.152 | I18: =IF(AC18<0,"-",+PPMT(返済条件入力!$C$8/12,G18,返済条件入力!$C$10*12,返済条件入力!$C$6)) -> -833369.7955 | J18: -227285.3569 | L18: 113 | M18: =IF(AB18<0,"-",+返済条件入力!$C$15) -> -1060655.152 | N18: =IF(AB18<0,"-",+PPMT(返済条件入力!$C$8/12,L18,返済条件入力!$C$10*12,返済条件入力!$C$6)) -> -1025953.787 | O18: -34701.3649 | Q18: 163 | R18: =IF(AA18<0,"-",+返済条件入力!$C$15) -> - | S18: =IF(AA18<0,"-",+PPMT(返済条件入力!$C$8/12,Q18,返済条件入力!$C$10*12,返済条件入力!$C$6)) -> - | T18: - | V18: 213 | W18: =IF(Z18<0,"-",+返済条件入力!$C$15) -> - | X18: =IF(Z18<0,"-",+PPMT(返済条件入力!$C$8/12,V18,返済条件入力!$C$10*12,返済条件入力!$C$6)) -> - | Y18: - | Z18: -93 | AA18: -43 | AB18: 7 | AC18: 57 | AD18: 107
B19: 14 | C19: =IF(AD18<0,"-",+返済条件入力!$C$15) -> -1060655.152 | D19: =IF(AD18<0,"-",+PPMT(返済条件入力!$C$8/12,B19,返済条件入力!$C$10*12,返済条件入力!$C$6)) -> -679756.7262 | E19: -380898.4262 | G19: 64 | H19: =IF(AC19<0,"-",+返済条件入力!$C$15) -> -1060655.152 | I19: =IF(AC19<0,"-",+PPMT(返済条件入力!$C$8/12,G19,返済条件入力!$C$10*12,返済条件入力!$C$6)) -> -836842.1697 | J19: -223812.9827 | L19: 114 | M19: =IF(AB19<0,"-",+返済条件入力!$C$15) -> -1060655.152 | N19: =IF(AB19<0,"-",+PPMT(返済条件入力!$C$8/12,L19,返済条件入力!$C$10*12,返済条件入力!$C$6)) -> -1030228.595 | O19: -30426.55745 | Q19: 164 | R19: =IF(AA19<0,"-",+返済条件入力!$C$15) -> - | S19: =IF(AA19<0,"-",+PPMT(返済条件入力!$C$8/12,Q19,返済条件入力!$C$10*12,返済条件入力!$C$6)) -> - | T19: - | V19: 214 | W19: =IF(Z19<0,"-",+返済条件入力!$C$15) -> - | X19: =IF(Z19<0,"-",+PPMT(返済条件入力!$C$8/12,V19,返済条件入力!$C$10*12,返済条件入力!$C$6)) -> - | Y19: - | Z19: -94 | AA19: -44 | AB19: 6 | AC19: 56 | AD19: 106
B20: 15 | C20: =IF(AD19<0,"-",+返済条件入力!$C$15) -> -1060655.152 | D20: =IF(AD19<0,"-",+PPMT(返済条件入力!$C$8/12,B20,返済条件入力!$C$10*12,返済条件入力!$C$6)) -> -682589.0459 | E20: -378066.1065 | G20: 65 | H20: =IF(AC20<0,"-",+返済条件入力!$C$15) -> -1060655.152 | I20: =IF(AC20<0,"-",+PPMT(返済条件入力!$C$8/12,G20,返済条件入力!$C$10*12,返済条件入力!$C$6)) -> -840329.012 | J20: -220326.1404 | L20: 115 | M20: =IF(AB20<0,"-",+返済条件入力!$C$15) -> -1060655.152 | N20: =IF(AB20<0,"-",+PPMT(返済条件入力!$C$8/12,L20,返済条件入力!$C$10*12,返済条件入力!$C$6)) -> -1034521.214 | O20: -26133.93831 | Q20: 165 | R20: =IF(AA20<0,"-",+返済条件入力!$C$15) -> - | S20: =IF(AA20<0,"-",+PPMT(返済条件入力!$C$8/12,Q20,返済条件入力!$C$10*12,返済条件入力!$C$6)) -> - | T20: - | V20: 215 | W20: =IF(Z20<0,"-",+返済条件入力!$C$15) -> - | X20: =IF(Z20<0,"-",+PPMT(返済条件入力!$C$8/12,V20,返済条件入力!$C$10*12,返済条件入力!$C$6)) -> - | Y20: - | Z20: -95 | AA20: -45 | AB20: 5 | AC20: 55 | AD20: 105
B21: 16 | C21: =IF(AD20<0,"-",+返済条件入力!$C$15) -> -1060655.152 | D21: =IF(AD20<0,"-",+PPMT(返済条件入力!$C$8/12,B21,返済条件入力!$C$10*12,返済条件入力!$C$6)) -> -685433.1669 | E21: -375221.9855 | G21: 66 | H21: =IF(AC21<0,"-",+返済条件入力!$C$15) -> -1060655.152 | I21: =IF(AC21<0,"-",+PPMT(返済条件入力!$C$8/12,G21,返済条件入力!$C$10*12,返済条件入力!$C$6)) -> -843830.3829 | J21: -216824.7695 | L21: 116 | M21: =IF(AB21<0,"-",+返済条件入力!$C$15) -> -1060655.152 | N21: =IF(AB21<0,"-",+PPMT(返済条件入力!$C$8/12,L21,返済条件入力!$C$10*12,返済条件入力!$C$6)) -> -1038831.719 | O21: -21823.43325 | Q21: 166 | R21: =IF(AA21<0,"-",+返済条件入力!$C$15) -> - | S21: =IF(AA21<0,"-",+PPMT(返済条件入力!$C$8/12,Q21,返済条件入力!$C$10*12,返済条件入力!$C$6)) -> - | T21: - | V21: 216 | W21: =IF(Z21<0,"-",+返済条件入力!$C$15) -> - | X21: =IF(Z21<0,"-",+PPMT(返済条件入力!$C$8/12,V21,返済条件入力!$C$10*12,返済条件入力!$C$6)) -> - | Y21: - | Z21: -96 | AA21: -46 | AB21: 4 | AC21: 54 | AD21: 104
B22: 17 | C22: =IF(AD21<0,"-",+返済条件入力!$C$15) -> -1060655.152 | D22: =IF(AD21<0,"-",+PPMT(返済条件入力!$C$8/12,B22,返済条件入力!$C$10*12,返済条件入力!$C$6)) -> -688289.1384 | E22: -372366.0139 | G22: 67 | H22: =IF(AC22<0,"-",+返済条件入力!$C$15) -> -1060655.152 | I22: =IF(AC22<0,"-",+PPMT(返済条件入力!$C$8/12,G22,返済条件入力!$C$10*12,返済条件入力!$C$6)) -> -847346.3429 | J22: -213308.8095 | L22: 117 | M22: =IF(AB22<0,"-",+返済条件入力!$C$15) -> -1060655.152 | N22: =IF(AB22<0,"-",+PPMT(返済条件入力!$C$8/12,L22,返済条件入力!$C$10*12,返済条件入力!$C$6)) -> -1043160.185 | O22: -17494.96775 | Q22: 167 | R22: =IF(AA22<0,"-",+返済条件入力!$C$15) -> - | S22: =IF(AA22<0,"-",+PPMT(返済条件入力!$C$8/12,Q22,返済条件入力!$C$10*12,返済条件入力!$C$6)) -> - | T22: - | V22: 217 | W22: =IF(Z22<0,"-",+返済条件入力!$C$15) -> - | X22: =IF(Z22<0,"-",+PPMT(返済条件入力!$C$8/12,V22,返済条件入力!$C$10*12,返済条件入力!$C$6)) -> - | Y22: - | Z22: -97 | AA22: -47 | AB22: 3 | AC22: 53 | AD22: 103
B23: 18 | C23: =IF(AD22<0,"-",+返済条件入力!$C$15) -> -1060655.152 | D23: =IF(AD22<0,"-",+PPMT(返済条件入力!$C$8/12,B23,返済条件入力!$C$10*12,返済条件入力!$C$6)) -> -691157.0099 | E23: -369498.1425 | G23: 68 | H23: =IF(AC23<0,"-",+返済条件入力!$C$15) -> -1060655.152 | I23: =IF(AC23<0,"-",+PPMT(返済条件入力!$C$8/12,G23,返済条件入力!$C$10*12,返済条件入力!$C$6)) -> -850876.9526 | J23: -209778.1998 | L23: 118 | M23: =IF(AB23<0,"-",+返済条件入力!$C$15) -> -1060655.152 | N23: =IF(AB23<0,"-",+PPMT(返済条件入力!$C$8/12,L23,返済条件入力!$C$10*12,返済条件入力!$C$6)) -> -1047506.685 | O23: -13148.46698 | Q23: 168 | R23: =IF(AA23<0,"-",+返済条件入力!$C$15) -> - | S23: =IF(AA23<0,"-",+PPMT(返済条件入力!$C$8/12,Q23,返済条件入力!$C$10*12,返済条件入力!$C$6)) -> - | T23: - | V23: 218 | W23: =IF(Z23<0,"-",+返済条件入力!$C$15) -> - | X23: =IF(Z23<0,"-",+PPMT(返済条件入力!$C$8/12,V23,返済条件入力!$C$10*12,返済条件入力!$C$6)) -> - | Y23: - | Z23: -98 | AA23: -48 | AB23: 2 | AC23: 52 | AD23: 102
B24: 19 | C24: =IF(AD23<0,"-",+返済条件入力!$C$15) -> -1060655.152 | D24: =IF(AD23<0,"-",+PPMT(返済条件入力!$C$8/12,B24,返済条件入力!$C$10*12,返済条件入力!$C$6)) -> -694036.8307 | E24: -366618.3217 | G24: 69 | H24: =IF(AC24<0,"-",+返済条件入力!$C$15) -> -1060655.152 | I24: =IF(AC24<0,"-",+PPMT(返済条件入力!$C$8/12,G24,返済条件入力!$C$10*12,返済条件入力!$C$6)) -> -854422.2732 | J24: -206232.8791 | L24: 119 | M24: =IF(AB24<0,"-",+返済条件入力!$C$15) -> -1060655.152 | N24: =IF(AB24<0,"-",+PPMT(返済条件入力!$C$8/12,L24,返済条件入力!$C$10*12,返済条件入力!$C$6)) -> -1051871.297 | O24: -8783.855793 | Q24: 169 | R24: =IF(AA24<0,"-",+返済条件入力!$C$15) -> - | S24: =IF(AA24<0,"-",+PPMT(返済条件入力!$C$8/12,Q24,返済条件入力!$C$10*12,返済条件入力!$C$6)) -> - | T24: - | V24: 219 | W24: =IF(Z24<0,"-",+返済条件入力!$C$15) -> - | X24: =IF(Z24<0,"-",+PPMT(返済条件入力!$C$8/12,V24,返済条件入力!$C$10*12,返済条件入力!$C$6)) -> - | Y24: - | Z24: -99 | AA24: -49 | AB24: 1 | AC24: 51 | AD24: 101
B25: 20 | C25: =IF(AD24<0,"-",+返済条件入力!$C$15) -> -1060655.152 | D25: =IF(AD24<0,"-",+PPMT(返済条件入力!$C$8/12,B25,返済条件入力!$C$10*12,返済条件入力!$C$6)) -> -696928.6509 | E25: -363726.5015 | G25: 70 | H25: =IF(AC25<0,"-",+返済条件入力!$C$15) -> -1060655.152 | I25: =IF(AC25<0,"-",+PPMT(返済条件入力!$C$8/12,G25,返済条件入力!$C$10*12,返済条件入力!$C$6)) -> -857982.3661 | J25: -202672.7863 | L25: 120 | M25: =IF(AB25<0,"-",+返済条件入力!$C$15) -> -1060655.152 | N25: =IF(AB25<0,"-",+PPMT(返済条件入力!$C$8/12,L25,返済条件入力!$C$10*12,返済条件入力!$C$6)) -> -1056254.094 | O25: -4401.058724 | Q25: 170 | R25: =IF(AA25<0,"-",+返済条件入力!$C$15) -> - | S25: =IF(AA25<0,"-",+PPMT(返済条件入力!$C$8/12,Q25,返済条件入力!$C$10*12,返済条件入力!$C$6)) -> - | T25: - | V25: 220 | W25: =IF(Z25<0,"-",+返済条件入力!$C$15) -> - | X25: =IF(Z25<0,"-",+PPMT(返済条件入力!$C$8/12,V25,返済条件入力!$C$10*12,返済条件入力!$C$6)) -> - | Y25: - | Z25: -100 | AA25: -50 | AB25: 0 | AC25: 50 | AD25: 100
B26: 21 | C26: =IF(AD25<0,"-",+返済条件入力!$C$15) -> -1060655.152 | D26: =IF(AD25<0,"-",+PPMT(返済条件入力!$C$8/12,B26,返済条件入力!$C$10*12,返済条件入力!$C$6)) -> -699832.5202 | E26: -360822.6322 | G26: 71 | H26: =IF(AC26<0,"-",+返済条件入力!$C$15) -> -1060655.152 | I26: =IF(AC26<0,"-",+PPMT(返済条件入力!$C$8/12,G26,返済条件入力!$C$10*12,返済条件入力!$C$6)) -> -861557.2926 | J26: -199097.8598 | L26: 121 | M26: =IF(AB26<0,"-",+返済条件入力!$C$15) -> - | N26: =IF(AB26<0,"-",+PPMT(返済条件入力!$C$8/12,L26,返済条件入力!$C$10*12,返済条件入力!$C$6)) -> - | O26: - | Q26: 171 | R26: =IF(AA26<0,"-",+返済条件入力!$C$15) -> - | S26: =IF(AA26<0,"-",+PPMT(返済条件入力!$C$8/12,Q26,返済条件入力!$C$10*12,返済条件入力!$C$6)) -> - | T26: - | V26: 221 | W26: =IF(Z26<0,"-",+返済条件入力!$C$15) -> - | X26: =IF(Z26<0,"-",+PPMT(返済条件入力!$C$8/12,V26,返済条件入力!$C$10*12,返済条件入力!$C$6)) -> - | Y26: - | Z26: -101 | AA26: -51 | AB26: -1 | AC26: 49 | AD26: 99
B27: 22 | C27: =IF(AD26<0,"-",+返済条件入力!$C$15) -> -1060655.152 | D27: =IF(AD26<0,"-",+PPMT(返済条件入力!$C$8/12,B27,返済条件入力!$C$10*12,返済条件入力!$C$6)) -> -702748.4891 | E27: -357906.6633 | G27: 72 | H27: =IF(AC27<0,"-",+返済条件入力!$C$15) -> -1060655.152 | I27: =IF(AC27<0,"-",+PPMT(返済条件入力!$C$8/12,G27,返済条件入力!$C$10*12,返済条件入力!$C$6)) -> -865147.1146 | J27: -195508.0378 | L27: 122 | M27: =IF(AB27<0,"-",+返済条件入力!$C$15) -> - | N27: =IF(AB27<0,"-",+PPMT(返済条件入力!$C$8/12,L27,返済条件入力!$C$10*12,返済条件入力!$C$6)) -> - | O27: - | Q27: 172 | R27: =IF(AA27<0,"-",+返済条件入力!$C$15) -> - | S27: =IF(AA27<0,"-",+PPMT(返済条件入力!$C$8/12,Q27,返済条件入力!$C$10*12,返済条件入力!$C$6)) -> - | T27: - | V27: 222 | W27: =IF(Z27<0,"-",+返済条件入力!$C$15) -> - | X27: =IF(Z27<0,"-",+PPMT(返済条件入力!$C$8/12,V27,返済条件入力!$C$10*12,返済条件入力!$C$6)) -> - | Y27: - | Z27: -102 | AA27: -52 | AB27: -2 | AC27: 48 | AD27: 98
B28: 23 | C28: =IF(AD27<0,"-",+返済条件入力!$C$15) -> -1060655.152 | D28: =IF(AD27<0,"-",+PPMT(返済条件入力!$C$8/12,B28,返済条件入力!$C$10*12,返済条件入力!$C$6)) -> -705676.6078 | E28: -354978.5446 | G28: 73 | H28: =IF(AC28<0,"-",+返済条件入力!$C$15) -> -1060655.152 | I28: =IF(AC28<0,"-",+PPMT(返済条件入力!$C$8/12,G28,返済条件入力!$C$10*12,返済条件入力!$C$6)) -> -868751.8943 | J28: -191903.2581 | L28: 123 | M28: =IF(AB28<0,"-",+返済条件入力!$C$15) -> - | N28: =IF(AB28<0,"-",+PPMT(返済条件入力!$C$8/12,L28,返済条件入力!$C$10*12,返済条件入力!$C$6)) -> - | O28: - | Q28: 173 | R28: =IF(AA28<0,"-",+返済条件入力!$C$15) -> - | S28: =IF(AA28<0,"-",+PPMT(返済条件入力!$C$8/12,Q28,返済条件入力!$C$10*12,返済条件入力!$C$6)) -> - | T28: - | V28: 223 | W28: =IF(Z28<0,"-",+返済条件入力!$C$15) -> - | X28: =IF(Z28<0,"-",+PPMT(返済条件入力!$C$8/12,V28,返済条件入力!$C$10*12,返済条件入力!$C$6)) -> - | Y28: - | Z28: -103 | AA28: -53 | AB28: -3 | AC28: 47 | AD28: 97
B29: 24 | C29: =IF(AD28<0,"-",+返済条件入力!$C$15) -> -1060655.152 | D29: =IF(AD28<0,"-",+PPMT(返済条件入力!$C$8/12,B29,返済条件入力!$C$10*12,返済条件入力!$C$6)) -> -708616.927 | E29: -352038.2254 | G29: 74 | H29: =IF(AC29<0,"-",+返済条件入力!$C$15) -> -1060655.152 | I29: =IF(AC29<0,"-",+PPMT(返済条件入力!$C$8/12,G29,返済条件入力!$C$10*12,返済条件入力!$C$6)) -> -872371.6938 | J29: -188283.4586 | L29: 124 | M29: =IF(AB29<0,"-",+返済条件入力!$C$15) -> - | N29: =IF(AB29<0,"-",+PPMT(返済条件入力!$C$8/12,L29,返済条件入力!$C$10*12,返済条件入力!$C$6)) -> - | O29: - | Q29: 174 | R29: =IF(AA29<0,"-",+返済条件入力!$C$15) -> - | S29: =IF(AA29<0,"-",+PPMT(返済条件入力!$C$8/12,Q29,返済条件入力!$C$10*12,返済条件入力!$C$6)) -> - | T29: - | V29: 224 | W29: =IF(Z29<0,"-",+返済条件入力!$C$15) -> - | X29: =IF(Z29<0,"-",+PPMT(返済条件入力!$C$8/12,V29,返済条件入力!$C$10*12,返済条件入力!$C$6)) -> - | Y29: - | Z29: -104 | AA29: -54 | AB29: -4 | AC29: 46 | AD29: 96
B30: 25 | C30: =IF(AD29<0,"-",+返済条件入力!$C$15) -> -1060655.152 | D30: =IF(AD29<0,"-",+PPMT(返済条件入力!$C$8/12,B30,返済条件入力!$C$10*12,返済条件入力!$C$6)) -> -711569.4975 | E30: -349085.6549 | G30: 75 | H30: =IF(AC30<0,"-",+返済条件入力!$C$15) -> -1060655.152 | I30: =IF(AC30<0,"-",+PPMT(返済条件入力!$C$8/12,G30,返済条件入力!$C$10*12,返済条件入力!$C$6)) -> -876006.5759 | J30: -184648.5765 | L30: 125 | M30: =IF(AB30<0,"-",+返済条件入力!$C$15) -> - | N30: =IF(AB30<0,"-",+PPMT(返済条件入力!$C$8/12,L30,返済条件入力!$C$10*12,返済条件入力!$C$6)) -> - | O30: - | Q30: 175 | R30: =IF(AA30<0,"-",+返済条件入力!$C$15) -> - | S30: =IF(AA30<0,"-",+PPMT(返済条件入力!$C$8/12,Q30,返済条件入力!$C$10*12,返済条件入力!$C$6)) -> - | T30: - | V30: 225 | W30: =IF(Z30<0,"-",+返済条件入力!$C$15) -> - | X30: =IF(Z30<0,"-",+PPMT(返済条件入力!$C$8/12,V30,返済条件入力!$C$10*12,返済条件入力!$C$6)) -> - | Y30: - | Z30: -105 | AA30: -55 | AB30: -5 | AC30: 45 | AD30: 95
B31: 26 | C31: =IF(AD30<0,"-",+返済条件入力!$C$15) -> -1060655.152 | D31: =IF(AD30<0,"-",+PPMT(返済条件入力!$C$8/12,B31,返済条件入力!$C$10*12,返済条件入力!$C$6)) -> -714534.3704 | E31: -346120.782 | G31: 76 | H31: =IF(AC31<0,"-",+返済条件入力!$C$15) -> -1060655.152 | I31: =IF(AC31<0,"-",+PPMT(返済条件入力!$C$8/12,G31,返済条件入力!$C$10*12,返済条件入力!$C$6)) -> -879656.6033 | J31: -180998.5491 | L31: 126 | M31: =IF(AB31<0,"-",+返済条件入力!$C$15) -> - | N31: =IF(AB31<0,"-",+PPMT(返済条件入力!$C$8/12,L31,返済条件入力!$C$10*12,返済条件入力!$C$6)) -> - | O31: - | Q31: 176 | R31: =IF(AA31<0,"-",+返済条件入力!$C$15) -> - | S31: =IF(AA31<0,"-",+PPMT(返済条件入力!$C$8/12,Q31,返済条件入力!$C$10*12,返済条件入力!$C$6)) -> - | T31: - | V31: 226 | W31: =IF(Z31<0,"-",+返済条件入力!$C$15) -> - | X31: =IF(Z31<0,"-",+PPMT(返済条件入力!$C$8/12,V31,返済条件入力!$C$10*12,返済条件入力!$C$6)) -> - | Y31: - | Z31: -106 | AA31: -56 | AB31: -6 | AC31: 44 | AD31: 94
B32: 27 | C32: =IF(AD31<0,"-",+返済条件入力!$C$15) -> -1060655.152 | D32: =IF(AD31<0,"-",+PPMT(返済条件入力!$C$8/12,B32,返済条件入力!$C$10*12,返済条件入力!$C$6)) -> -717511.5969 | E32: -343143.5554 | G32: 77 | H32: =IF(AC32<0,"-",+返済条件入力!$C$15) -> -1060655.152 | I32: =IF(AC32<0,"-",+PPMT(返済条件入力!$C$8/12,G32,返済条件入力!$C$10*12,返済条件入力!$C$6)) -> -883321.8391 | J32: -177333.3133 | L32: 127 | M32: =IF(AB32<0,"-",+返済条件入力!$C$15) -> - | N32: =IF(AB32<0,"-",+PPMT(返済条件入力!$C$8/12,L32,返済条件入力!$C$10*12,返済条件入力!$C$6)) -> - | O32: - | Q32: 177 | R32: =IF(AA32<0,"-",+返済条件入力!$C$15) -> - | S32: =IF(AA32<0,"-",+PPMT(返済条件入力!$C$8/12,Q32,返済条件入力!$C$10*12,返済条件入力!$C$6)) -> - | T32: - | V32: 227 | W32: =IF(Z32<0,"-",+返済条件入力!$C$15) -> - | X32: =IF(Z32<0,"-",+PPMT(返済条件入力!$C$8/12,V32,返済条件入力!$C$10*12,返済条件入力!$C$6)) -> - | Y32: - | Z32: -107 | AA32: -57 | AB32: -7 | AC32: 43 | AD32: 93
B33: 28 | C33: =IF(AD32<0,"-",+返済条件入力!$C$15) -> -1060655.152 | D33: =IF(AD32<0,"-",+PPMT(返済条件入力!$C$8/12,B33,返済条件入力!$C$10*12,返済条件入力!$C$6)) -> -720501.2286 | E33: -340153.9238 | G33: 78 | H33: =IF(AC33<0,"-",+返済条件入力!$C$15) -> -1060655.152 | I33: =IF(AC33<0,"-",+PPMT(返済条件入力!$C$8/12,G33,返済条件入力!$C$10*12,返済条件入力!$C$6)) -> -887002.3468 | J33: -173652.8056 | L33: 128 | M33: =IF(AB33<0,"-",+返済条件入力!$C$15) -> - | N33: =IF(AB33<0,"-",+PPMT(返済条件入力!$C$8/12,L33,返済条件入力!$C$10*12,返済条件入力!$C$6)) -> - | O33: - | Q33: 178 | R33: =IF(AA33<0,"-",+返済条件入力!$C$15) -> - | S33: =IF(AA33<0,"-",+PPMT(返済条件入力!$C$8/12,Q33,返済条件入力!$C$10*12,返済条件入力!$C$6)) -> - | T33: - | V33: 228 | W33: =IF(Z33<0,"-",+返済条件入力!$C$15) -> - | X33: =IF(Z33<0,"-",+PPMT(返済条件入力!$C$8/12,V33,返済条件入力!$C$10*12,返済条件入力!$C$6)) -> - | Y33: - | Z33: -108 | AA33: -58 | AB33: -8 | AC33: 42 | AD33: 92
B34: 29 | C34: =IF(AD33<0,"-",+返済条件入力!$C$15) -> -1060655.152 | D34: =IF(AD33<0,"-",+PPMT(返済条件入力!$C$8/12,B34,返済条件入力!$C$10*12,返済条件入力!$C$6)) -> -723503.3171 | E34: -337151.8353 | G34: 79 | H34: =IF(AC34<0,"-",+返済条件入力!$C$15) -> -1060655.152 | I34: =IF(AC34<0,"-",+PPMT(返済条件入力!$C$8/12,G34,返済条件入力!$C$10*12,返済条件入力!$C$6)) -> -890698.1899 | J34: -169956.9625 | L34: 129 | M34: =IF(AB34<0,"-",+返済条件入力!$C$15) -> - | N34: =IF(AB34<0,"-",+PPMT(返済条件入力!$C$8/12,L34,返済条件入力!$C$10*12,返済条件入力!$C$6)) -> - | O34: - | Q34: 179 | R34: =IF(AA34<0,"-",+返済条件入力!$C$15) -> - | S34: =IF(AA34<0,"-",+PPMT(返済条件入力!$C$8/12,Q34,返済条件入力!$C$10*12,返済条件入力!$C$6)) -> - | T34: - | V34: 229 | W34: =IF(Z34<0,"-",+返済条件入力!$C$15) -> - | X34: =IF(Z34<0,"-",+PPMT(返済条件入力!$C$8/12,V34,返済条件入力!$C$10*12,返済条件入力!$C$6)) -> - | Y34: - | Z34: -109 | AA34: -59 | AB34: -9 | AC34: 41 | AD34: 91
B35: 30 | C35: =IF(AD34<0,"-",+返済条件入力!$C$15) -> -1060655.152 | D35: =IF(AD34<0,"-",+PPMT(返済条件入力!$C$8/12,B35,返済条件入力!$C$10*12,返済条件入力!$C$6)) -> -726517.9142 | E35: -334137.2382 | G35: 80 | H35: =IF(AC35<0,"-",+返済条件入力!$C$15) -> -1060655.152 | I35: =IF(AC35<0,"-",+PPMT(返済条件入力!$C$8/12,G35,返済条件入力!$C$10*12,返済条件入力!$C$6)) -> -894409.4324 | J35: -166245.72 | L35: 130 | M35: =IF(AB35<0,"-",+返済条件入力!$C$15) -> - | N35: =IF(AB35<0,"-",+PPMT(返済条件入力!$C$8/12,L35,返済条件入力!$C$10*12,返済条件入力!$C$6)) -> - | O35: - | Q35: 180 | R35: =IF(AA35<0,"-",+返済条件入力!$C$15) -> - | S35: =IF(AA35<0,"-",+PPMT(返済条件入力!$C$8/12,Q35,返済条件入力!$C$10*12,返済条件入力!$C$6)) -> - | T35: - | V35: 230 | W35: =IF(Z35<0,"-",+返済条件入力!$C$15) -> - | X35: =IF(Z35<0,"-",+PPMT(返済条件入力!$C$8/12,V35,返済条件入力!$C$10*12,返済条件入力!$C$6)) -> - | Y35: - | Z35: -110 | AA35: -60 | AB35: -10 | AC35: 40 | AD35: 90
B36: 31 | C36: =IF(AD35<0,"-",+返済条件入力!$C$15) -> -1060655.152 | D36: =IF(AD35<0,"-",+PPMT(返済条件入力!$C$8/12,B36,返済条件入力!$C$10*12,返済条件入力!$C$6)) -> -729545.0722 | E36: -331110.0802 | G36: 81 | H36: =IF(AC36<0,"-",+返済条件入力!$C$15) -> -1060655.152 | I36: =IF(AC36<0,"-",+PPMT(返済条件入力!$C$8/12,G36,返済条件入力!$C$10*12,返済条件入力!$C$6)) -> -898136.1383 | J36: -162519.0141 | L36: 131 | M36: =IF(AB36<0,"-",+返済条件入力!$C$15) -> - | N36: =IF(AB36<0,"-",+PPMT(返済条件入力!$C$8/12,L36,返済条件入力!$C$10*12,返済条件入力!$C$6)) -> - | O36: - | Q36: 181 | R36: =IF(AA36<0,"-",+返済条件入力!$C$15) -> - | S36: =IF(AA36<0,"-",+PPMT(返済条件入力!$C$8/12,Q36,返済条件入力!$C$10*12,返済条件入力!$C$6)) -> - | T36: - | V36: 231 | W36: =IF(Z36<0,"-",+返済条件入力!$C$15) -> - | X36: =IF(Z36<0,"-",+PPMT(返済条件入力!$C$8/12,V36,返済条件入力!$C$10*12,返済条件入力!$C$6)) -> - | Y36: - | Z36: -111 | AA36: -61 | AB36: -11 | AC36: 39 | AD36: 89
B37: 32 | C37: =IF(AD36<0,"-",+返済条件入力!$C$15) -> -1060655.152 | D37: =IF(AD36<0,"-",+PPMT(返済条件入力!$C$8/12,B37,返済条件入力!$C$10*12,返済条件入力!$C$6)) -> -732584.8433 | E37: -328070.3091 | G37: 82 | H37: =IF(AC37<0,"-",+返済条件入力!$C$15) -> -1060655.152 | I37: =IF(AC37<0,"-",+PPMT(返済条件入力!$C$8/12,G37,返済条件入力!$C$10*12,返済条件入力!$C$6)) -> -901878.3723 | J37: -158776.7801 | L37: 132 | M37: =IF(AB37<0,"-",+返済条件入力!$C$15) -> - | N37: =IF(AB37<0,"-",+PPMT(返済条件入力!$C$8/12,L37,返済条件入力!$C$10*12,返済条件入力!$C$6)) -> - | O37: - | Q37: 182 | R37: =IF(AA37<0,"-",+返済条件入力!$C$15) -> - | S37: =IF(AA37<0,"-",+PPMT(返済条件入力!$C$8/12,Q37,返済条件入力!$C$10*12,返済条件入力!$C$6)) -> - | T37: - | V37: 232 | W37: =IF(Z37<0,"-",+返済条件入力!$C$15) -> - | X37: =IF(Z37<0,"-",+PPMT(返済条件入力!$C$8/12,V37,返済条件入力!$C$10*12,返済条件入力!$C$6)) -> - | Y37: - | Z37: -112 | AA37: -62 | AB37: -12 | AC37: 38 | AD37: 88
B38: 33 | C38: =IF(AD37<0,"-",+返済条件入力!$C$15) -> -1060655.152 | D38: =IF(AD37<0,"-",+PPMT(返済条件入力!$C$8/12,B38,返済条件入力!$C$10*12,返済条件入力!$C$6)) -> -735637.2802 | E38: -325017.8722 | G38: 83 | H38: =IF(AC38<0,"-",+返済条件入力!$C$15) -> -1060655.152 | I38: =IF(AC38<0,"-",+PPMT(返済条件入力!$C$8/12,G38,返済条件入力!$C$10*12,返済条件入力!$C$6)) -> -905636.1988 | J38: -155018.9536 | L38: 133 | M38: =IF(AB38<0,"-",+返済条件入力!$C$15) -> - | N38: =IF(AB38<0,"-",+PPMT(返済条件入力!$C$8/12,L38,返済条件入力!$C$10*12,返済条件入力!$C$6)) -> - | O38: - | Q38: 183 | R38: =IF(AA38<0,"-",+返済条件入力!$C$15) -> - | S38: =IF(AA38<0,"-",+PPMT(返済条件入力!$C$8/12,Q38,返済条件入力!$C$10*12,返済条件入力!$C$6)) -> - | T38: - | V38: 233 | W38: =IF(Z38<0,"-",+返済条件入力!$C$15) -> - | X38: =IF(Z38<0,"-",+PPMT(返済条件入力!$C$8/12,V38,返済条件入力!$C$10*12,返済条件入力!$C$6)) -> - | Y38: - | Z38: -113 | AA38: -63 | AB38: -13 | AC38: 37 | AD38: 87
B39: 34 | C39: =IF(AD38<0,"-",+返済条件入力!$C$15) -> -1060655.152 | D39: =IF(AD38<0,"-",+PPMT(返済条件入力!$C$8/12,B39,返済条件入力!$C$10*12,返済条件入力!$C$6)) -> -738702.4355 | E39: -321952.7169 | G39: 84 | H39: =IF(AC39<0,"-",+返済条件入力!$C$15) -> -1060655.152 | I39: =IF(AC39<0,"-",+PPMT(返済条件入力!$C$8/12,G39,返済条件入力!$C$10*12,返済条件入力!$C$6)) -> -909409.683 | J39: -151245.4694 | L39: 134 | M39: =IF(AB39<0,"-",+返済条件入力!$C$15) -> - | N39: =IF(AB39<0,"-",+PPMT(返済条件入力!$C$8/12,L39,返済条件入力!$C$10*12,返済条件入力!$C$6)) -> - | O39: - | Q39: 184 | R39: =IF(AA39<0,"-",+返済条件入力!$C$15) -> - | S39: =IF(AA39<0,"-",+PPMT(返済条件入力!$C$8/12,Q39,返済条件入力!$C$10*12,返済条件入力!$C$6)) -> - | T39: - | V39: 234 | W39: =IF(Z39<0,"-",+返済条件入力!$C$15) -> - | X39: =IF(Z39<0,"-",+PPMT(返済条件入力!$C$8/12,V39,返済条件入力!$C$10*12,返済条件入力!$C$6)) -> - | Y39: - | Z39: -114 | AA39: -64 | AB39: -14 | AC39: 36 | AD39: 86
B40: 35 | C40: =IF(AD39<0,"-",+返済条件入力!$C$15) -> -1060655.152 | D40: =IF(AD39<0,"-",+PPMT(返済条件入力!$C$8/12,B40,返済条件入力!$C$10*12,返済条件入力!$C$6)) -> -741780.3623 | E40: -318874.7901 | G40: 85 | H40: =IF(AC40<0,"-",+返済条件入力!$C$15) -> -1060655.152 | I40: =IF(AC40<0,"-",+PPMT(返済条件入力!$C$8/12,G40,返済条件入力!$C$10*12,返済条件入力!$C$6)) -> -913198.89 | J40: -147456.2624 | L40: 135 | M40: =IF(AB40<0,"-",+返済条件入力!$C$15) -> - | N40: =IF(AB40<0,"-",+PPMT(返済条件入力!$C$8/12,L40,返済条件入力!$C$10*12,返済条件入力!$C$6)) -> - | O40: - | Q40: 185 | R40: =IF(AA40<0,"-",+返済条件入力!$C$15) -> - | S40: =IF(AA40<0,"-",+PPMT(返済条件入力!$C$8/12,Q40,返済条件入力!$C$10*12,返済条件入力!$C$6)) -> - | T40: - | V40: 235 | W40: =IF(Z40<0,"-",+返済条件入力!$C$15) -> - | X40: =IF(Z40<0,"-",+PPMT(返済条件入力!$C$8/12,V40,返済条件入力!$C$10*12,返済条件入力!$C$6)) -> - | Y40: - | Z40: -115 | AA40: -65 | AB40: -15 | AC40: 35 | AD40: 85
B41: 36 | C41: =IF(AD40<0,"-",+返済条件入力!$C$15) -> -1060655.152 | D41: =IF(AD40<0,"-",+PPMT(返済条件入力!$C$8/12,B41,返済条件入力!$C$10*12,返済条件入力!$C$6)) -> -744871.1138 | E41: -315784.0386 | G41: 86 | H41: =IF(AC41<0,"-",+返済条件入力!$C$15) -> -1060655.152 | I41: =IF(AC41<0,"-",+PPMT(返済条件入力!$C$8/12,G41,返済条件入力!$C$10*12,返済条件入力!$C$6)) -> -917003.8854 | J41: -143651.267 | L41: 136 | M41: =IF(AB41<0,"-",+返済条件入力!$C$15) -> - | N41: =IF(AB41<0,"-",+PPMT(返済条件入力!$C$8/12,L41,返済条件入力!$C$10*12,返済条件入力!$C$6)) -> - | O41: - | Q41: 186 | R41: =IF(AA41<0,"-",+返済条件入力!$C$15) -> - | S41: =IF(AA41<0,"-",+PPMT(返済条件入力!$C$8/12,Q41,返済条件入力!$C$10*12,返済条件入力!$C$6)) -> - | T41: - | V41: 236 | W41: =IF(Z41<0,"-",+返済条件入力!$C$15) -> - | X41: =IF(Z41<0,"-",+PPMT(返済条件入力!$C$8/12,V41,返済条件入力!$C$10*12,返済条件入力!$C$6)) -> - | Y41: - | Z41: -116 | AA41: -66 | AB41: -16 | AC41: 34 | AD41: 84
B42: 37 | C42: =IF(AD41<0,"-",+返済条件入力!$C$15) -> -1060655.152 | D42: =IF(AD41<0,"-",+PPMT(返済条件入力!$C$8/12,B42,返済条件入力!$C$10*12,返済条件入力!$C$6)) -> -747974.7435 | E42: -312680.4089 | G42: 87 | H42: =IF(AC42<0,"-",+返済条件入力!$C$15) -> -1060655.152 | I42: =IF(AC42<0,"-",+PPMT(返済条件入力!$C$8/12,G42,返済条件入力!$C$10*12,返済条件入力!$C$6)) -> -920824.7349 | J42: -139830.4175 | L42: 137 | M42: =IF(AB42<0,"-",+返済条件入力!$C$15) -> - | N42: =IF(AB42<0,"-",+PPMT(返済条件入力!$C$8/12,L42,返済条件入力!$C$10*12,返済条件入力!$C$6)) -> - | O42: - | Q42: 187 | R42: =IF(AA42<0,"-",+返済条件入力!$C$15) -> - | S42: =IF(AA42<0,"-",+PPMT(返済条件入力!$C$8/12,Q42,返済条件入力!$C$10*12,返済条件入力!$C$6)) -> - | T42: - | V42: 237 | W42: =IF(Z42<0,"-",+返済条件入力!$C$15) -> - | X42: =IF(Z42<0,"-",+PPMT(返済条件入力!$C$8/12,V42,返済条件入力!$C$10*12,返済条件入力!$C$6)) -> - | Y42: - | Z42: -117 | AA42: -67 | AB42: -17 | AC42: 33 | AD42: 83
B43: 38 | C43: =IF(AD42<0,"-",+返済条件入力!$C$15) -> -1060655.152 | D43: =IF(AD42<0,"-",+PPMT(返済条件入力!$C$8/12,B43,返済条件入力!$C$10*12,返済条件入力!$C$6)) -> -751091.3049 | E43: -309563.8475 | G43: 88 | H43: =IF(AC43<0,"-",+返済条件入力!$C$15) -> -1060655.152 | I43: =IF(AC43<0,"-",+PPMT(返済条件入力!$C$8/12,G43,返済条件入力!$C$10*12,返済条件入力!$C$6)) -> -924661.5046 | J43: -135993.6478 | L43: 138 | M43: =IF(AB43<0,"-",+返済条件入力!$C$15) -> - | N43: =IF(AB43<0,"-",+PPMT(返済条件入力!$C$8/12,L43,返済条件入力!$C$10*12,返済条件入力!$C$6)) -> - | O43: - | Q43: 188 | R43: =IF(AA43<0,"-",+返済条件入力!$C$15) -> - | S43: =IF(AA43<0,"-",+PPMT(返済条件入力!$C$8/12,Q43,返済条件入力!$C$10*12,返済条件入力!$C$6)) -> - | T43: - | V43: 238 | W43: =IF(Z43<0,"-",+返済条件入力!$C$15) -> - | X43: =IF(Z43<0,"-",+PPMT(返済条件入力!$C$8/12,V43,返済条件入力!$C$10*12,返済条件入力!$C$6)) -> - | Y43: - | Z43: -118 | AA43: -68 | AB43: -18 | AC43: 32 | AD43: 82
B44: 39 | C44: =IF(AD43<0,"-",+返済条件入力!$C$15) -> -1060655.152 | D44: =IF(AD43<0,"-",+PPMT(返済条件入力!$C$8/12,B44,返済条件入力!$C$10*12,返済条件入力!$C$6)) -> -754220.852 | E44: -306434.3004 | G44: 89 | H44: =IF(AC44<0,"-",+返済条件入力!$C$15) -> -1060655.152 | I44: =IF(AC44<0,"-",+PPMT(返済条件入力!$C$8/12,G44,返済条件入力!$C$10*12,返済条件入力!$C$6)) -> -928514.2609 | J44: -132140.8915 | L44: 139 | M44: =IF(AB44<0,"-",+返済条件入力!$C$15) -> - | N44: =IF(AB44<0,"-",+PPMT(返済条件入力!$C$8/12,L44,返済条件入力!$C$10*12,返済条件入力!$C$6)) -> - | O44: - | Q44: 189 | R44: =IF(AA44<0,"-",+返済条件入力!$C$15) -> - | S44: =IF(AA44<0,"-",+PPMT(返済条件入力!$C$8/12,Q44,返済条件入力!$C$10*12,返済条件入力!$C$6)) -> - | T44: - | V44: 239 | W44: =IF(Z44<0,"-",+返済条件入力!$C$15) -> - | X44: =IF(Z44<0,"-",+PPMT(返済条件入力!$C$8/12,V44,返済条件入力!$C$10*12,返済条件入力!$C$6)) -> - | Y44: - | Z44: -119 | AA44: -69 | AB44: -19 | AC44: 31 | AD44: 81
B45: 40 | C45: =IF(AD44<0,"-",+返済条件入力!$C$15) -> -1060655.152 | D45: =IF(AD44<0,"-",+PPMT(返済条件入力!$C$8/12,B45,返済条件入力!$C$10*12,返済条件入力!$C$6)) -> -757363.4389 | E45: -303291.7135 | G45: 90 | H45: =IF(AC45<0,"-",+返済条件入力!$C$15) -> -1060655.152 | I45: =IF(AC45<0,"-",+PPMT(返済条件入力!$C$8/12,G45,返済条件入力!$C$10*12,返済条件入力!$C$6)) -> -932383.0703 | J45: -128272.0821 | L45: 140 | M45: =IF(AB45<0,"-",+返済条件入力!$C$15) -> - | N45: =IF(AB45<0,"-",+PPMT(返済条件入力!$C$8/12,L45,返済条件入力!$C$10*12,返済条件入力!$C$6)) -> - | O45: - | Q45: 190 | R45: =IF(AA45<0,"-",+返済条件入力!$C$15) -> - | S45: =IF(AA45<0,"-",+PPMT(返済条件入力!$C$8/12,Q45,返済条件入力!$C$10*12,返済条件入力!$C$6)) -> - | T45: - | V45: 240 | W45: =IF(Z45<0,"-",+返済条件入力!$C$15) -> - | X45: =IF(Z45<0,"-",+PPMT(返済条件入力!$C$8/12,V45,返済条件入力!$C$10*12,返済条件入力!$C$6)) -> - | Y45: - | Z45: -120 | AA45: -70 | AB45: -20 | AC45: 30 | AD45: 80
B46: 41 | C46: =IF(AD45<0,"-",+返済条件入力!$C$15) -> -1060655.152 | D46: =IF(AD45<0,"-",+PPMT(返済条件入力!$C$8/12,B46,返済条件入力!$C$10*12,返済条件入力!$C$6)) -> -760519.1199 | E46: -300136.0325 | G46: 91 | H46: =IF(AC46<0,"-",+返済条件入力!$C$15) -> -1060655.152 | I46: =IF(AC46<0,"-",+PPMT(返済条件入力!$C$8/12,G46,返済条件入力!$C$10*12,返済条件入力!$C$6)) -> -936267.9998 | J46: -124387.1526 | L46: 141 | M46: =IF(AB46<0,"-",+返済条件入力!$C$15) -> - | N46: =IF(AB46<0,"-",+PPMT(返済条件入力!$C$8/12,L46,返済条件入力!$C$10*12,返済条件入力!$C$6)) -> - | O46: - | Q46: 191 | R46: =IF(AA46<0,"-",+返済条件入力!$C$15) -> - | S46: =IF(AA46<0,"-",+PPMT(返済条件入力!$C$8/12,Q46,返済条件入力!$C$10*12,返済条件入力!$C$6)) -> - | T46: - | V46: 241 | W46: =IF(Z46<0,"-",+返済条件入力!$C$15) -> - | X46: =IF(Z46<0,"-",+PPMT(返済条件入力!$C$8/12,V46,返済条件入力!$C$10*12,返済条件入力!$C$6)) -> - | Y46: - | Z46: -121 | AA46: -71 | AB46: -21 | AC46: 29 | AD46: 79
B47: 42 | C47: =IF(AD46<0,"-",+返済条件入力!$C$15) -> -1060655.152 | D47: =IF(AD46<0,"-",+PPMT(返済条件入力!$C$8/12,B47,返済条件入力!$C$10*12,返済条件入力!$C$6)) -> -763687.9495 | E47: -296967.2028 | G47: 92 | H47: =IF(AC47<0,"-",+返済条件入力!$C$15) -> -1060655.152 | I47: =IF(AC47<0,"-",+PPMT(返済条件入力!$C$8/12,G47,返済条件入力!$C$10*12,返済条件入力!$C$6)) -> -940169.1164 | J47: -120486.036 | L47: 142 | M47: =IF(AB47<0,"-",+返済条件入力!$C$15) -> - | N47: =IF(AB47<0,"-",+PPMT(返済条件入力!$C$8/12,L47,返済条件入力!$C$10*12,返済条件入力!$C$6)) -> - | O47: - | Q47: 192 | R47: =IF(AA47<0,"-",+返済条件入力!$C$15) -> - | S47: =IF(AA47<0,"-",+PPMT(返済条件入力!$C$8/12,Q47,返済条件入力!$C$10*12,返済条件入力!$C$6)) -> - | T47: - | V47: 242 | W47: =IF(Z47<0,"-",+返済条件入力!$C$15) -> - | X47: =IF(Z47<0,"-",+PPMT(返済条件入力!$C$8/12,V47,返済条件入力!$C$10*12,返済条件入力!$C$6)) -> - | Y47: - | Z47: -122 | AA47: -72 | AB47: -22 | AC47: 28 | AD47: 78
B48: 43 | C48: =IF(AD47<0,"-",+返済条件入力!$C$15) -> -1060655.152 | D48: =IF(AD47<0,"-",+PPMT(返済条件入力!$C$8/12,B48,返済条件入力!$C$10*12,返済条件入力!$C$6)) -> -766869.9827 | E48: -293785.1697 | G48: 93 | H48: =IF(AC48<0,"-",+返済条件入力!$C$15) -> -1060655.152 | I48: =IF(AC48<0,"-",+PPMT(返済条件入力!$C$8/12,G48,返済条件入力!$C$10*12,返済条件入力!$C$6)) -> -944086.4877 | J48: -116568.6647 | L48: 143 | M48: =IF(AB48<0,"-",+返済条件入力!$C$15) -> - | N48: =IF(AB48<0,"-",+PPMT(返済条件入力!$C$8/12,L48,返済条件入力!$C$10*12,返済条件入力!$C$6)) -> - | O48: - | Q48: 193 | R48: =IF(AA48<0,"-",+返済条件入力!$C$15) -> - | S48: =IF(AA48<0,"-",+PPMT(返済条件入力!$C$8/12,Q48,返済条件入力!$C$10*12,返済条件入力!$C$6)) -> - | T48: - | V48: 243 | W48: =IF(Z48<0,"-",+返済条件入力!$C$15) -> - | X48: =IF(Z48<0,"-",+PPMT(返済条件入力!$C$8/12,V48,返済条件入力!$C$10*12,返済条件入力!$C$6)) -> - | Y48: - | Z48: -123 | AA48: -73 | AB48: -23 | AC48: 27 | AD48: 77
B49: 44 | C49: =IF(AD48<0,"-",+返済条件入力!$C$15) -> -1060655.152 | D49: =IF(AD48<0,"-",+PPMT(返済条件入力!$C$8/12,B49,返済条件入力!$C$10*12,返済条件入力!$C$6)) -> -770065.2743 | E49: -290589.8781 | G49: 94 | H49: =IF(AC49<0,"-",+返済条件入力!$C$15) -> -1060655.152 | I49: =IF(AC49<0,"-",+PPMT(返済条件入力!$C$8/12,G49,返済条件入力!$C$10*12,返済条件入力!$C$6)) -> -948020.1814 | J49: -112634.971 | L49: 144 | M49: =IF(AB49<0,"-",+返済条件入力!$C$15) -> - | N49: =IF(AB49<0,"-",+PPMT(返済条件入力!$C$8/12,L49,返済条件入力!$C$10*12,返済条件入力!$C$6)) -> - | O49: - | Q49: 194 | R49: =IF(AA49<0,"-",+返済条件入力!$C$15) -> - | S49: =IF(AA49<0,"-",+PPMT(返済条件入力!$C$8/12,Q49,返済条件入力!$C$10*12,返済条件入力!$C$6)) -> - | T49: - | V49: 244 | W49: =IF(Z49<0,"-",+返済条件入力!$C$15) -> - | X49: =IF(Z49<0,"-",+PPMT(返済条件入力!$C$8/12,V49,返済条件入力!$C$10*12,返済条件入力!$C$6)) -> - | Y49: - | Z49: -124 | AA49: -74 | AB49: -24 | AC49: 26 | AD49: 76
B50: 45 | C50: =IF(AD49<0,"-",+返済条件入力!$C$15) -> -1060655.152 | D50: =IF(AD49<0,"-",+PPMT(返済条件入力!$C$8/12,B50,返済条件入力!$C$10*12,返済条件入力!$C$6)) -> -773273.8796 | E50: -287381.2728 | G50: 95 | H50: =IF(AC50<0,"-",+返済条件入力!$C$15) -> -1060655.152 | I50: =IF(AC50<0,"-",+PPMT(返済条件入力!$C$8/12,G50,返済条件入力!$C$10*12,返済条件入力!$C$6)) -> -951970.2655 | J50: -108684.8869 | L50: 145 | M50: =IF(AB50<0,"-",+返済条件入力!$C$15) -> - | N50: =IF(AB50<0,"-",+PPMT(返済条件入力!$C$8/12,L50,返済条件入力!$C$10*12,返済条件入力!$C$6)) -> - | O50: - | Q50: 195 | R50: =IF(AA50<0,"-",+返済条件入力!$C$15) -> - | S50: =IF(AA50<0,"-",+PPMT(返済条件入力!$C$8/12,Q50,返済条件入力!$C$10*12,返済条件入力!$C$6)) -> - | T50: - | V50: 245 | W50: =IF(Z50<0,"-",+返済条件入力!$C$15) -> - | X50: =IF(Z50<0,"-",+PPMT(返済条件入力!$C$8/12,V50,返済条件入力!$C$10*12,返済条件入力!$C$6)) -> - | Y50: - | Z50: -125 | AA50: -75 | AB50: -25 | AC50: 25 | AD50: 75
B51: 46 | C51: =IF(AD50<0,"-",+返済条件入力!$C$15) -> -1060655.152 | D51: =IF(AD50<0,"-",+PPMT(返済条件入力!$C$8/12,B51,返済条件入力!$C$10*12,返済条件入力!$C$6)) -> -776495.8541 | E51: -284159.2983 | G51: 96 | H51: =IF(AC51<0,"-",+返済条件入力!$C$15) -> -1060655.152 | I51: =IF(AC51<0,"-",+PPMT(返済条件入力!$C$8/12,G51,返済条件入力!$C$10*12,返済条件入力!$C$6)) -> -955936.8083 | J51: -104718.3441 | L51: 146 | M51: =IF(AB51<0,"-",+返済条件入力!$C$15) -> - | N51: =IF(AB51<0,"-",+PPMT(返済条件入力!$C$8/12,L51,返済条件入力!$C$10*12,返済条件入力!$C$6)) -> - | O51: - | Q51: 196 | R51: =IF(AA51<0,"-",+返済条件入力!$C$15) -> - | S51: =IF(AA51<0,"-",+PPMT(返済条件入力!$C$8/12,Q51,返済条件入力!$C$10*12,返済条件入力!$C$6)) -> - | T51: - | V51: 246 | W51: =IF(Z51<0,"-",+返済条件入力!$C$15) -> - | X51: =IF(Z51<0,"-",+PPMT(返済条件入力!$C$8/12,V51,返済条件入力!$C$10*12,返済条件入力!$C$6)) -> - | Y51: - | Z51: -126 | AA51: -76 | AB51: -26 | AC51: 24 | AD51: 74
B52: 47 | C52: =IF(AD51<0,"-",+返済条件入力!$C$15) -> -1060655.152 | D52: =IF(AD51<0,"-",+PPMT(返済条件入力!$C$8/12,B52,返済条件入力!$C$10*12,返済条件入力!$C$6)) -> -779731.2535 | E52: -280923.8989 | G52: 97 | H52: =IF(AC52<0,"-",+返済条件入力!$C$15) -> -1060655.152 | I52: =IF(AC52<0,"-",+PPMT(返済条件入力!$C$8/12,G52,返済条件入力!$C$10*12,返済条件入力!$C$6)) -> -959919.8783 | J52: -100735.2741 | L52: 147 | M52: =IF(AB52<0,"-",+返済条件入力!$C$15) -> - | N52: =IF(AB52<0,"-",+PPMT(返済条件入力!$C$8/12,L52,返済条件入力!$C$10*12,返済条件入力!$C$6)) -> - | O52: - | Q52: 197 | R52: =IF(AA52<0,"-",+返済条件入力!$C$15) -> - | S52: =IF(AA52<0,"-",+PPMT(返済条件入力!$C$8/12,Q52,返済条件入力!$C$10*12,返済条件入力!$C$6)) -> - | T52: - | V52: 247 | W52: =IF(Z52<0,"-",+返済条件入力!$C$15) -> - | X52: =IF(Z52<0,"-",+PPMT(返済条件入力!$C$8/12,V52,返済条件入力!$C$10*12,返済条件入力!$C$6)) -> - | Y52: - | Z52: -127 | AA52: -77 | AB52: -27 | AC52: 23 | AD52: 73
B53: 48 | C53: =IF(AD52<0,"-",+返済条件入力!$C$15) -> -1060655.152 | D53: =IF(AD52<0,"-",+PPMT(返済条件入力!$C$8/12,B53,返済条件入力!$C$10*12,返済条件入力!$C$6)) -> -782980.1337 | E53: -277675.0187 | G53: 98 | H53: =IF(AC53<0,"-",+返済条件入力!$C$15) -> -1060655.152 | I53: =IF(AC53<0,"-",+PPMT(返済条件入力!$C$8/12,G53,返済条件入力!$C$10*12,返済条件入力!$C$6)) -> -963919.5445 | J53: -96735.6079 | L53: 148 | M53: =IF(AB53<0,"-",+返済条件入力!$C$15) -> - | N53: =IF(AB53<0,"-",+PPMT(返済条件入力!$C$8/12,L53,返済条件入力!$C$10*12,返済条件入力!$C$6)) -> - | O53: - | Q53: 198 | R53: =IF(AA53<0,"-",+返済条件入力!$C$15) -> - | S53: =IF(AA53<0,"-",+PPMT(返済条件入力!$C$8/12,Q53,返済条件入力!$C$10*12,返済条件入力!$C$6)) -> - | T53: - | V53: 248 | W53: =IF(Z53<0,"-",+返済条件入力!$C$15) -> - | X53: =IF(Z53<0,"-",+PPMT(返済条件入力!$C$8/12,V53,返済条件入力!$C$10*12,返済条件入力!$C$6)) -> - | Y53: - | Z53: -128 | AA53: -78 | AB53: -28 | AC53: 22 | AD53: 72
B54: 49 | C54: =IF(AD53<0,"-",+返済条件入力!$C$15) -> -1060655.152 | D54: =IF(AD53<0,"-",+PPMT(返済条件入力!$C$8/12,B54,返済条件入力!$C$10*12,返済条件入力!$C$6)) -> -786242.5509 | E54: -274412.6015 | G54: 99 | H54: =IF(AC54<0,"-",+返済条件入力!$C$15) -> -1060655.152 | I54: =IF(AC54<0,"-",+PPMT(返済条件入力!$C$8/12,G54,返済条件入力!$C$10*12,返済条件入力!$C$6)) -> -967935.8759 | J54: -92719.27647 | L54: 149 | M54: =IF(AB54<0,"-",+返済条件入力!$C$15) -> - | N54: =IF(AB54<0,"-",+PPMT(返済条件入力!$C$8/12,L54,返済条件入力!$C$10*12,返済条件入力!$C$6)) -> - | O54: - | Q54: 199 | R54: =IF(AA54<0,"-",+返済条件入力!$C$15) -> - | S54: =IF(AA54<0,"-",+PPMT(返済条件入力!$C$8/12,Q54,返済条件入力!$C$10*12,返済条件入力!$C$6)) -> - | T54: - | V54: 249 | W54: =IF(Z54<0,"-",+返済条件入力!$C$15) -> - | X54: =IF(Z54<0,"-",+PPMT(返済条件入力!$C$8/12,V54,返済条件入力!$C$10*12,返済条件入力!$C$6)) -> - | Y54: - | Z54: -129 | AA54: -79 | AB54: -29 | AC54: 21 | AD54: 71
B55: 50 | C55: =IF(AD54<0,"-",+返済条件入力!$C$15) -> -1060655.152 | D55: =IF(AD54<0,"-",+PPMT(返済条件入力!$C$8/12,B55,返済条件入力!$C$10*12,返済条件入力!$C$6)) -> -789518.5615 | E55: -271136.5909 | G55: 100 | H55: =IF(AC55<0,"-",+返済条件入力!$C$15) -> -1060655.152 | I55: =IF(AC55<0,"-",+PPMT(返済条件入力!$C$8/12,G55,返済条件入力!$C$10*12,返済条件入力!$C$6)) -> -971968.9421 | J55: -88686.21032 | L55: 150 | M55: =IF(AB55<0,"-",+返済条件入力!$C$15) -> - | N55: =IF(AB55<0,"-",+PPMT(返済条件入力!$C$8/12,L55,返済条件入力!$C$10*12,返済条件入力!$C$6)) -> - | O55: - | Q55: 200 | R55: =IF(AA55<0,"-",+返済条件入力!$C$15) -> - | S55: =IF(AA55<0,"-",+PPMT(返済条件入力!$C$8/12,Q55,返済条件入力!$C$10*12,返済条件入力!$C$6)) -> - | T55: - | V55: 250 | W55: =IF(Z55<0,"-",+返済条件入力!$C$15) -> - | X55: =IF(Z55<0,"-",+PPMT(返済条件入力!$C$8/12,V55,返済条件入力!$C$10*12,返済条件入力!$C$6)) -> - | Y55: - | Z55: -130 | AA55: -80 | AB55: -30 | AC55: 20 | AD55: 70

Sheet 返済計画表・元金均等返済方式
B2: 返済計画表 元金均等返済方式
B3: =返済条件入力!B6 -> 借入金額 | C3: =返済条件入力!C6 -> 100000000 | G3: =返済条件入力!B8 -> 金利 | H3: =返済条件入力!C8 -> 0.05 | L3: 返済回数 | M3: =返済条件入力!C10*12 -> 120
B5: 支払回 | C5: 返済額 | D5: 元金 | E5: 利息 | G5: 支払回 | H5: 返済額 | I5: 元金 | J5: 利息 | L5: 支払回 | M5: 返済額 | N5: 元金 | O5: 利息 | Q5: 支払回 | R5: 返済額 | S5: 元金 | T5: 利息 | V5: 支払回 | W5: 返済額 | X5: 元金 | Y5: 利息
B6: 1 | C6: =+D6-E6 -> 1246527.778 | D6: =+返済条件入力!$C$6/返済条件入力!$C$10/12 -> 833333.3333 | E6: =ISPMT(返済条件入力!$C$8/12,B6,返済条件入力!$C$10*12,返済条件入力!$C$6) -> -413194.4444 | G6: 51 | H6: =IF(AC6<0,"-",+I6-J6) -> 1072916.667 | I6: =IF(AC6<0,"-",+返済条件入力!$C$6/返済条件入力!$C$10/12) -> 833333.3333 | J6: =IF(AC6<0,"-",ISPMT(返済条件入力!$C$8/12,G6,返済条件入力!$C$10*12,返済条件入力!$C$6)) -> -239583.3333 | L6: 101 | M6: =IF(AB6<0,"-",+N6-O6) -> 899305.5556 | N6: =IF(AB6<0,"-",+返済条件入力!$C$6/返済条件入力!$C$10/12) -> 833333.3333 | O6: =IF(AB6<0,"-",ISPMT(返済条件入力!$C$8/12,L6,返済条件入力!$C$10*12,返済条件入力!$C$6)) -> -65972.22222 | Q6: 151 | R6: =IF(AA6<0,"-",+S6-T6) -> - | S6: =IF(AA6<0,"-",+返済条件入力!$C$6/返済条件入力!$C$10/12) -> - | T6: =IF(AA6<0,"-",ISPMT(返済条件入力!$C$8/12,Q6,返済条件入力!$C$10*12,返済条件入力!$C$6)) -> - | V6: 201 | W6: =IF(Z6<0,"-",+X6-Y6) -> - | X6: =IF(Z6<0,"-",+返済条件入力!$C$6/返済条件入力!$C$10/12) -> - | Y6: =IF(Z6<0,"-",ISPMT(返済条件入力!$C$8/12,V6,返済条件入力!$C$10*12,返済条件入力!$C$6)) -> - | Z6: =+M$3-V6 -> -81 | AA6: =+M$3-Q6 -> -31 | AB6: =+M$3-L6 -> 19 | AC6: =+M$3-G6 -> 69 | AD6: =+M$3-B6 -> 119
B7: 2 | C7: =IF(AD7<0,"-",+D7-E7) -> 1243055.556 | D7: =IF(AD7<0,"-",+返済条件入力!$C$6/返済条件入力!$C$10/12) -> 833333.3333 | E7: =IF(AD7<0,"-",ISPMT(返済条件入力!$C$8/12,B7,返済条件入力!$C$10*12,返済条件入力!$C$6)) -> -409722.2222 | G7: 52 | H7: =IF(AC7<0,"-",+I7-J7) -> 1069444.444 | I7: =IF(AC7<0,"-",+返済条件入力!$C$6/返済条件入力!$C$10/12) -> 833333.3333 | J7: =IF(AC7<0,"-",ISPMT(返済条件入力!$C$8/12,G7,返済条件入力!$C$10*12,返済条件入力!$C$6)) -> -236111.1111 | L7: 102 | M7: =IF(AB7<0,"-",+N7-O7) -> 895833.3333 | N7: =IF(AB7<0,"-",+返済条件入力!$C$6/返済条件入力!$C$10/12) -> 833333.3333 | O7: =IF(AB7<0,"-",ISPMT(返済条件入力!$C$8/12,L7,返済条件入力!$C$10*12,返済条件入力!$C$6)) -> -62500 | Q7: 152 | R7: =IF(AA7<0,"-",+S7-T7) -> - | S7: =IF(AA7<0,"-",+返済条件入力!$C$6/返済条件入力!$C$10/12) -> - | T7: =IF(AA7<0,"-",ISPMT(返済条件入力!$C$8/12,Q7,返済条件入力!$C$10*12,返済条件入力!$C$6)) -> - | V7: 202 | W7: =IF(Z7<0,"-",+X7-Y7) -> - | X7: =IF(Z7<0,"-",+返済条件入力!$C$6/返済条件入力!$C$10/12) -> - | Y7: =IF(Z7<0,"-",ISPMT(返済条件入力!$C$8/12,V7,返済条件入力!$C$10*12,返済条件入力!$C$6)) -> - | Z7: =+M$3-V7 -> -82 | AA7: =+M$3-Q7 -> -32 | AB7: =+M$3-L7 -> 18 | AC7: =+M$3-G7 -> 68 | AD7: =+M$3-B7 -> 118
B8: 3 | C8: =IF(AD8<0,"-",+D8-E8) -> 1239583.333 | D8: =IF(AD8<0,"-",+返済条件入力!$C$6/返済条件入力!$C$10/12) -> 833333.3333 | E8: =IF(AD8<0,"-",ISPMT(返済条件入力!$C$8/12,B8,返済条件入力!$C$10*12,返済条件入力!$C$6)) -> -406250 | G8: 53 | H8: 1065972.222 | I8: =IF(AC8<0,"-",+返済条件入力!$C$6/返済条件入力!$C$10/12) -> 833333.3333 | J8: =IF(AC8<0,"-",ISPMT(返済条件入力!$C$8/12,G8,返済条件入力!$C$10*12,返済条件入力!$C$6)) -> -232638.8889 | L8: 103 | M8: 892361.1111 | N8: =IF(AB8<0,"-",+返済条件入力!$C$6/返済条件入力!$C$10/12) -> 833333.3333 | O8: =IF(AB8<0,"-",ISPMT(返済条件入力!$C$8/12,L8,返済条件入力!$C$10*12,返済条件入力!$C$6)) -> -59027.77778 | Q8: 153 | R8: - | S8: =IF(AA8<0,"-",+返済条件入力!$C$6/返済条件入力!$C$10/12) -> - | T8: =IF(AA8<0,"-",ISPMT(返済条件入力!$C$8/12,Q8,返済条件入力!$C$10*12,返済条件入力!$C$6)) -> - | V8: 203 | W8: - | X8: =IF(Z8<0,"-",+返済条件入力!$C$6/返済条件入力!$C$10/12) -> - | Y8: =IF(Z8<0,"-",ISPMT(返済条件入力!$C$8/12,V8,返済条件入力!$C$10*12,返済条件入力!$C$6)) -> - | Z8: -83 | AA8: -33 | AB8: 17 | AC8: 67 | AD8: 117
B9: 4 | C9: 1236111.111 | D9: =IF(AD9<0,"-",+返済条件入力!$C$6/返済条件入力!$C$10/12) -> 833333.3333 | E9: =IF(AD9<0,"-",ISPMT(返済条件入力!$C$8/12,B9,返済条件入力!$C$10*12,返済条件入力!$C$6)) -> -402777.7778 | G9: 54 | H9: 1062500 | I9: =IF(AC9<0,"-",+返済条件入力!$C$6/返済条件入力!$C$10/12) -> 833333.3333 | J9: =IF(AC9<0,"-",ISPMT(返済条件入力!$C$8/12,G9,返済条件入力!$C$10*12,返済条件入力!$C$6)) -> -229166.6667 | L9: 104 | M9: 888888.8889 | N9: =IF(AB9<0,"-",+返済条件入力!$C$6/返済条件入力!$C$10/12) -> 833333.3333 | O9: =IF(AB9<0,"-",ISPMT(返済条件入力!$C$8/12,L9,返済条件入力!$C$10*12,返済条件入力!$C$6)) -> -55555.55556 | Q9: 154 | R9: - | S9: =IF(AA9<0,"-",+返済条件入力!$C$6/返済条件入力!$C$10/12) -> - | T9: =IF(AA9<0,"-",ISPMT(返済条件入力!$C$8/12,Q9,返済条件入力!$C$10*12,返済条件入力!$C$6)) -> - | V9: 204 | W9: - | X9: =IF(Z9<0,"-",+返済条件入力!$C$6/返済条件入力!$C$10/12) -> - | Y9: =IF(Z9<0,"-",ISPMT(返済条件入力!$C$8/12,V9,返済条件入力!$C$10*12,返済条件入力!$C$6)) -> - | Z9: -84 | AA9: -34 | AB9: 16 | AC9: 66 | AD9: 116
B10: 5 | C10: 1232638.889 | D10: =IF(AD10<0,"-",+返済条件入力!$C$6/返済条件入力!$C$10/12) -> 833333.3333 | E10: =IF(AD10<0,"-",ISPMT(返済条件入力!$C$8/12,B10,返済条件入力!$C$10*12,返済条件入力!$C$6)) -> -399305.5556 | G10: 55 | H10: 1059027.778 | I10: =IF(AC10<0,"-",+返済条件入力!$C$6/返済条件入力!$C$10/12) -> 833333.3333 | J10: =IF(AC10<0,"-",ISPMT(返済条件入力!$C$8/12,G10,返済条件入力!$C$10*12,返済条件入力!$C$6)) -> -225694.4444 | L10: 105 | M10: 885416.6667 | N10: =IF(AB10<0,"-",+返済条件入力!$C$6/返済条件入力!$C$10/12) -> 833333.3333 | O10: =IF(AB10<0,"-",ISPMT(返済条件入力!$C$8/12,L10,返済条件入力!$C$10*12,返済条件入力!$C$6)) -> -52083.33333 | Q10: 155 | R10: - | S10: =IF(AA10<0,"-",+返済条件入力!$C$6/返済条件入力!$C$10/12) -> - | T10: =IF(AA10<0,"-",ISPMT(返済条件入力!$C$8/12,Q10,返済条件入力!$C$10*12,返済条件入力!$C$6)) -> - | V10: 205 | W10: - | X10: =IF(Z10<0,"-",+返済条件入力!$C$6/返済条件入力!$C$10/12) -> - | Y10: =IF(Z10<0,"-",ISPMT(返済条件入力!$C$8/12,V10,返済条件入力!$C$10*12,返済条件入力!$C$6)) -> - | Z10: -85 | AA10: -35 | AB10: 15 | AC10: 65 | AD10: 115
B11: 6 | C11: 1229166.667 | D11: =IF(AD11<0,"-",+返済条件入力!$C$6/返済条件入力!$C$10/12) -> 833333.3333 | E11: =IF(AD11<0,"-",ISPMT(返済条件入力!$C$8/12,B11,返済条件入力!$C$10*12,返済条件入力!$C$6)) -> -395833.3333 | G11: 56 | H11: 1055555.556 | I11: =IF(AC11<0,"-",+返済条件入力!$C$6/返済条件入力!$C$10/12) -> 833333.3333 | J11: =IF(AC11<0,"-",ISPMT(返済条件入力!$C$8/12,G11,返済条件入力!$C$10*12,返済条件入力!$C$6)) -> -222222.2222 | L11: 106 | M11: 881944.4444 | N11: =IF(AB11<0,"-",+返済条件入力!$C$6/返済条件入力!$C$10/12) -> 833333.3333 | O11: =IF(AB11<0,"-",ISPMT(返済条件入力!$C$8/12,L11,返済条件入力!$C$10*12,返済条件入力!$C$6)) -> -48611.11111 | Q11: 156 | R11: - | S11: =IF(AA11<0,"-",+返済条件入力!$C$6/返済条件入力!$C$10/12) -> - | T11: =IF(AA11<0,"-",ISPMT(返済条件入力!$C$8/12,Q11,返済条件入力!$C$10*12,返済条件入力!$C$6)) -> - | V11: 206 | W11: - | X11: =IF(Z11<0,"-",+返済条件入力!$C$6/返済条件入力!$C$10/12) -> - | Y11: =IF(Z11<0,"-",ISPMT(返済条件入力!$C$8/12,V11,返済条件入力!$C$10*12,返済条件入力!$C$6)) -> - | Z11: -86 | AA11: -36 | AB11: 14 | AC11: 64 | AD11: 114
B12: 7 | C12: 1225694.444 | D12: =IF(AD12<0,"-",+返済条件入力!$C$6/返済条件入力!$C$10/12) -> 833333.3333 | E12: =IF(AD12<0,"-",ISPMT(返済条件入力!$C$8/12,B12,返済条件入力!$C$10*12,返済条件入力!$C$6)) -> -392361.1111 | G12: 57 | H12: 1052083.333 | I12: =IF(AC12<0,"-",+返済条件入力!$C$6/返済条件入力!$C$10/12) -> 833333.3333 | J12: =IF(AC12<0,"-",ISPMT(返済条件入力!$C$8/12,G12,返済条件入力!$C$10*12,返済条件入力!$C$6)) -> -218750 | L12: 107 | M12: 878472.2222 | N12: =IF(AB12<0,"-",+返済条件入力!$C$6/返済条件入力!$C$10/12) -> 833333.3333 | O12: =IF(AB12<0,"-",ISPMT(返済条件入力!$C$8/12,L12,返済条件入力!$C$10*12,返済条件入力!$C$6)) -> -45138.88889 | Q12: 157 | R12: - | S12: =IF(AA12<0,"-",+返済条件入力!$C$6/返済条件入力!$C$10/12) -> - | T12: =IF(AA12<0,"-",ISPMT(返済条件入力!$C$8/12,Q12,返済条件入力!$C$10*12,返済条件入力!$C$6)) -> - | V12: 207 | W12: - | X12: =IF(Z12<0,"-",+返済条件入力!$C$6/返済条件入力!$C$10/12) -> - | Y12: =IF(Z12<0,"-",ISPMT(返済条件入力!$C$8/12,V12,返済条件入力!$C$10*12,返済条件入力!$C$6)) -> - | Z12: -87 | AA12: -37 | AB12: 13 | AC12: 63 | AD12: 113
B13: 8 | C13: 1222222.222 | D13: =IF(AD13<0,"-",+返済条件入力!$C$6/返済条件入力!$C$10/12) -> 833333.3333 | E13: =IF(AD13<0,"-",ISPMT(返済条件入力!$C$8/12,B13,返済条件入力!$C$10*12,返済条件入力!$C$6)) -> -388888.8889 | G13: 58 | H13: 1048611.111 | I13: =IF(AC13<0,"-",+返済条件入力!$C$6/返済条件入力!$C$10/12) -> 833333.3333 | J13: =IF(AC13<0,"-",ISPMT(返済条件入力!$C$8/12,G13,返済条件入力!$C$10*12,返済条件入力!$C$6)) -> -215277.7778 | L13: 108 | M13: 875000 | N13: =IF(AB13<0,"-",+返済条件入力!$C$6/返済条件入力!$C$10/12) -> 833333.3333 | O13: =IF(AB13<0,"-",ISPMT(返済条件入力!$C$8/12,L13,返済条件入力!$C$10*12,返済条件入力!$C$6)) -> -41666.66667 | Q13: 158 | R13: - | S13: =IF(AA13<0,"-",+返済条件入力!$C$6/返済条件入力!$C$10/12) -> - | T13: =IF(AA13<0,"-",ISPMT(返済条件入力!$C$8/12,Q13,返済条件入力!$C$10*12,返済条件入力!$C$6)) -> - | V13: 208 | W13: - | X13: =IF(Z13<0,"-",+返済条件入力!$C$6/返済条件入力!$C$10/12) -> - | Y13: =IF(Z13<0,"-",ISPMT(返済条件入力!$C$8/12,V13,返済条件入力!$C$10*12,返済条件入力!$C$6)) -> - | Z13: -88 | AA13: -38 | AB13: 12 | AC13: 62 | AD13: 112
B14: 9 | C14: 1218750 | D14: =IF(AD14<0,"-",+返済条件入力!$C$6/返済条件入力!$C$10/12) -> 833333.3333 | E14: =IF(AD14<0,"-",ISPMT(返済条件入力!$C$8/12,B14,返済条件入力!$C$10*12,返済条件入力!$C$6)) -> -385416.6667 | G14: 59 | H14: 1045138.889 | I14: =IF(AC14<0,"-",+返済条件入力!$C$6/返済条件入力!$C$10/12) -> 833333.3333 | J14: =IF(AC14<0,"-",ISPMT(返済条件入力!$C$8/12,G14,返済条件入力!$C$10*12,返済条件入力!$C$6)) -> -211805.5556 | L14: 109 | M14: 871527.7778 | N14: =IF(AB14<0,"-",+返済条件入力!$C$6/返済条件入力!$C$10/12) -> 833333.3333 | O14: =IF(AB14<0,"-",ISPMT(返済条件入力!$C$8/12,L14,返済条件入力!$C$10*12,返済条件入力!$C$6)) -> -38194.44444 | Q14: 159 | R14: - | S14: =IF(AA14<0,"-",+返済条件入力!$C$6/返済条件入力!$C$10/12) -> - | T14: =IF(AA14<0,"-",ISPMT(返済条件入力!$C$8/12,Q14,返済条件入力!$C$10*12,返済条件入力!$C$6)) -> - | V14: 209 | W14: - | X14: =IF(Z14<0,"-",+返済条件入力!$C$6/返済条件入力!$C$10/12) -> - | Y14: =IF(Z14<0,"-",ISPMT(返済条件入力!$C$8/12,V14,返済条件入力!$C$10*12,返済条件入力!$C$6)) -> - | Z14: -89 | AA14: -39 | AB14: 11 | AC14: 61 | AD14: 111
B15: 10 | C15: 1215277.778 | D15: =IF(AD15<0,"-",+返済条件入力!$C$6/返済条件入力!$C$10/12) -> 833333.3333 | E15: =IF(AD15<0,"-",ISPMT(返済条件入力!$C$8/12,B15,返済条件入力!$C$10*12,返済条件入力!$C$6)) -> -381944.4444 | G15: 60 | H15: 1041666.667 | I15: =IF(AC15<0,"-",+返済条件入力!$C$6/返済条件入力!$C$10/12) -> 833333.3333 | J15: =IF(AC15<0,"-",ISPMT(返済条件入力!$C$8/12,G15,返済条件入力!$C$10*12,返済条件入力!$C$6)) -> -208333.3333 | L15: 110 | M15: 868055.5556 | N15: =IF(AB15<0,"-",+返済条件入力!$C$6/返済条件入力!$C$10/12) -> 833333.3333 | O15: =IF(AB15<0,"-",ISPMT(返済条件入力!$C$8/12,L15,返済条件入力!$C$10*12,返済条件入力!$C$6)) -> -34722.22222 | Q15: 160 | R15: - | S15: =IF(AA15<0,"-",+返済条件入力!$C$6/返済条件入力!$C$10/12) -> - | T15: =IF(AA15<0,"-",ISPMT(返済条件入力!$C$8/12,Q15,返済条件入力!$C$10*12,返済条件入力!$C$6)) -> - | V15: 210 | W15: - | X15: =IF(Z15<0,"-",+返済条件入力!$C$6/返済条件入力!$C$10/12) -> - | Y15: =IF(Z15<0,"-",ISPMT(返済条件入力!$C$8/12,V15,返済条件入力!$C$10*12,返済条件入力!$C$6)) -> - | Z15: -90 | AA15: -40 | AB15: 10 | AC15: 60 | AD15: 110
B16: 11 | C16: 1211805.556 | D16: =IF(AD16<0,"-",+返済条件入力!$C$6/返済条件入力!$C$10/12) -> 833333.3333 | E16: =IF(AD16<0,"-",ISPMT(返済条件入力!$C$8/12,B16,返済条件入力!$C$10*12,返済条件入力!$C$6)) -> -378472.2222 | G16: 61 | H16: 1038194.444 | I16: =IF(AC16<0,"-",+返済条件入力!$C$6/返済条件入力!$C$10/12) -> 833333.3333 | J16: =IF(AC16<0,"-",ISPMT(返済条件入力!$C$8/12,G16,返済条件入力!$C$10*12,返済条件入力!$C$6)) -> -204861.1111 | L16: 111 | M16: 864583.3333 | N16: =IF(AB16<0,"-",+返済条件入力!$C$6/返済条件入力!$C$10/12) -> 833333.3333 | O16: =IF(AB16<0,"-",ISPMT(返済条件入力!$C$8/12,L16,返済条件入力!$C$10*12,返済条件入力!$C$6)) -> -31250 | Q16: 161 | R16: - | S16: =IF(AA16<0,"-",+返済条件入力!$C$6/返済条件入力!$C$10/12) -> - | T16: =IF(AA16<0,"-",ISPMT(返済条件入力!$C$8/12,Q16,返済条件入力!$C$10*12,返済条件入力!$C$6)) -> - | V16: 211 | W16: - | X16: =IF(Z16<0,"-",+返済条件入力!$C$6/返済条件入力!$C$10/12) -> - | Y16: =IF(Z16<0,"-",ISPMT(返済条件入力!$C$8/12,V16,返済条件入力!$C$10*12,返済条件入力!$C$6)) -> - | Z16: -91 | AA16: -41 | AB16: 9 | AC16: 59 | AD16: 109
B17: 12 | C17: 1208333.333 | D17: =IF(AD17<0,"-",+返済条件入力!$C$6/返済条件入力!$C$10/12) -> 833333.3333 | E17: =IF(AD17<0,"-",ISPMT(返済条件入力!$C$8/12,B17,返済条件入力!$C$10*12,返済条件入力!$C$6)) -> -375000 | G17: 62 | H17: 1034722.222 | I17: =IF(AC17<0,"-",+返済条件入力!$C$6/返済条件入力!$C$10/12) -> 833333.3333 | J17: =IF(AC17<0,"-",ISPMT(返済条件入力!$C$8/12,G17,返済条件入力!$C$10*12,返済条件入力!$C$6)) -> -201388.8889 | L17: 112 | M17: 861111.1111 | N17: =IF(AB17<0,"-",+返済条件入力!$C$6/返済条件入力!$C$10/12) -> 833333.3333 | O17: =IF(AB17<0,"-",ISPMT(返済条件入力!$C$8/12,L17,返済条件入力!$C$10*12,返済条件入力!$C$6)) -> -27777.77778 | Q17: 162 | R17: - | S17: =IF(AA17<0,"-",+返済条件入力!$C$6/返済条件入力!$C$10/12) -> - | T17: =IF(AA17<0,"-",ISPMT(返済条件入力!$C$8/12,Q17,返済条件入力!$C$10*12,返済条件入力!$C$6)) -> - | V17: 212 | W17: - | X17: =IF(Z17<0,"-",+返済条件入力!$C$6/返済条件入力!$C$10/12) -> - | Y17: =IF(Z17<0,"-",ISPMT(返済条件入力!$C$8/12,V17,返済条件入力!$C$10*12,返済条件入力!$C$6)) -> - | Z17: -92 | AA17: -42 | AB17: 8 | AC17: 58 | AD17: 108
B18: 13 | C18: 1204861.111 | D18: =IF(AD18<0,"-",+返済条件入力!$C$6/返済条件入力!$C$10/12) -> 833333.3333 | E18: =IF(AD18<0,"-",ISPMT(返済条件入力!$C$8/12,B18,返済条件入力!$C$10*12,返済条件入力!$C$6)) -> -371527.7778 | G18: 63 | H18: 1031250 | I18: =IF(AC18<0,"-",+返済条件入力!$C$6/返済条件入力!$C$10/12) -> 833333.3333 | J18: =IF(AC18<0,"-",ISPMT(返済条件入力!$C$8/12,G18,返済条件入力!$C$10*12,返済条件入力!$C$6)) -> -197916.6667 | L18: 113 | M18: 857638.8889 | N18: =IF(AB18<0,"-",+返済条件入力!$C$6/返済条件入力!$C$10/12) -> 833333.3333 | O18: =IF(AB18<0,"-",ISPMT(返済条件入力!$C$8/12,L18,返済条件入力!$C$10*12,返済条件入力!$C$6)) -> -24305.55556 | Q18: 163 | R18: - | S18: =IF(AA18<0,"-",+返済条件入力!$C$6/返済条件入力!$C$10/12) -> - | T18: =IF(AA18<0,"-",ISPMT(返済条件入力!$C$8/12,Q18,返済条件入力!$C$10*12,返済条件入力!$C$6)) -> - | V18: 213 | W18: - | X18: =IF(Z18<0,"-",+返済条件入力!$C$6/返済条件入力!$C$10/12) -> - | Y18: =IF(Z18<0,"-",ISPMT(返済条件入力!$C$8/12,V18,返済条件入力!$C$10*12,返済条件入力!$C$6)) -> - | Z18: -93 | AA18: -43 | AB18: 7 | AC18: 57 | AD18: 107
B19: 14 | C19: 1201388.889 | D19: =IF(AD19<0,"-",+返済条件入力!$C$6/返済条件入力!$C$10/12) -> 833333.3333 | E19: =IF(AD19<0,"-",ISPMT(返済条件入力!$C$8/12,B19,返済条件入力!$C$10*12,返済条件入力!$C$6)) -> -368055.5556 | G19: 64 | H19: 1027777.778 | I19: =IF(AC19<0,"-",+返済条件入力!$C$6/返済条件入力!$C$10/12) -> 833333.3333 | J19: =IF(AC19<0,"-",ISPMT(返済条件入力!$C$8/12,G19,返済条件入力!$C$10*12,返済条件入力!$C$6)) -> -194444.4444 | L19: 114 | M19: 854166.6667 | N19: =IF(AB19<0,"-",+返済条件入力!$C$6/返済条件入力!$C$10/12) -> 833333.3333 | O19: =IF(AB19<0,"-",ISPMT(返済条件入力!$C$8/12,L19,返済条件入力!$C$10*12,返済条件入力!$C$6)) -> -20833.33333 | Q19: 164 | R19: - | S19: =IF(AA19<0,"-",+返済条件入力!$C$6/返済条件入力!$C$10/12) -> - | T19: =IF(AA19<0,"-",ISPMT(返済条件入力!$C$8/12,Q19,返済条件入力!$C$10*12,返済条件入力!$C$6)) -> - | V19: 214 | W19: - | X19: =IF(Z19<0,"-",+返済条件入力!$C$6/返済条件入力!$C$10/12) -> - | Y19: =IF(Z19<0,"-",ISPMT(返済条件入力!$C$8/12,V19,返済条件入力!$C$10*12,返済条件入力!$C$6)) -> - | Z19: -94 | AA19: -44 | AB19: 6 | AC19: 56 | AD19: 106
B20: 15 | C20: 1197916.667 | D20: =IF(AD20<0,"-",+返済条件入力!$C$6/返済条件入力!$C$10/12) -> 833333.3333 | E20: =IF(AD20<0,"-",ISPMT(返済条件入力!$C$8/12,B20,返済条件入力!$C$10*12,返済条件入力!$C$6)) -> -364583.3333 | G20: 65 | H20: 1024305.556 | I20: =IF(AC20<0,"-",+返済条件入力!$C$6/返済条件入力!$C$10/12) -> 833333.3333 | J20: =IF(AC20<0,"-",ISPMT(返済条件入力!$C$8/12,G20,返済条件入力!$C$10*12,返済条件入力!$C$6)) -> -190972.2222 | L20: 115 | M20: 850694.4444 | N20: =IF(AB20<0,"-",+返済条件入力!$C$6/返済条件入力!$C$10/12) -> 833333.3333 | O20: =IF(AB20<0,"-",ISPMT(返済条件入力!$C$8/12,L20,返済条件入力!$C$10*12,返済条件入力!$C$6)) -> -17361.11111 | Q20: 165 | R20: - | S20: =IF(AA20<0,"-",+返済条件入力!$C$6/返済条件入力!$C$10/12) -> - | T20: =IF(AA20<0,"-",ISPMT(返済条件入力!$C$8/12,Q20,返済条件入力!$C$10*12,返済条件入力!$C$6)) -> - | V20: 215 | W20: - | X20: =IF(Z20<0,"-",+返済条件入力!$C$6/返済条件入力!$C$10/12) -> - | Y20: =IF(Z20<0,"-",ISPMT(返済条件入力!$C$8/12,V20,返済条件入力!$C$10*12,返済条件入力!$C$6)) -> - | Z20: -95 | AA20: -45 | AB20: 5 | AC20: 55 | AD20: 105
B21: 16 | C21: 1194444.444 | D21: =IF(AD21<0,"-",+返済条件入力!$C$6/返済条件入力!$C$10/12) -> 833333.3333 | E21: =IF(AD21<0,"-",ISPMT(返済条件入力!$C$8/12,B21,返済条件入力!$C$10*12,返済条件入力!$C$6)) -> -361111.1111 | G21: 66 | H21: 1020833.333 | I21: =IF(AC21<0,"-",+返済条件入力!$C$6/返済条件入力!$C$10/12) -> 833333.3333 | J21: =IF(AC21<0,"-",ISPMT(返済条件入力!$C$8/12,G21,返済条件入力!$C$10*12,返済条件入力!$C$6)) -> -187500 | L21: 116 | M21: 847222.2222 | N21: =IF(AB21<0,"-",+返済条件入力!$C$6/返済条件入力!$C$10/12) -> 833333.3333 | O21: =IF(AB21<0,"-",ISPMT(返済条件入力!$C$8/12,L21,返済条件入力!$C$10*12,返済条件入力!$C$6)) -> -13888.88889 | Q21: 166 | R21: - | S21: =IF(AA21<0,"-",+返済条件入力!$C$6/返済条件入力!$C$10/12) -> - | T21: =IF(AA21<0,"-",ISPMT(返済条件入力!$C$8/12,Q21,返済条件入力!$C$10*12,返済条件入力!$C$6)) -> - | V21: 216 | W21: - | X21: =IF(Z21<0,"-",+返済条件入力!$C$6/返済条件入力!$C$10/12) -> - | Y21: =IF(Z21<0,"-",ISPMT(返済条件入力!$C$8/12,V21,返済条件入力!$C$10*12,返済条件入力!$C$6)) -> - | Z21: -96 | AA21: -46 | AB21: 4 | AC21: 54 | AD21: 104
B22: 17 | C22: 1190972.222 | D22: =IF(AD22<0,"-",+返済条件入力!$C$6/返済条件入力!$C$10/12) -> 833333.3333 | E22: =IF(AD22<0,"-",ISPMT(返済条件入力!$C$8/12,B22,返済条件入力!$C$10*12,返済条件入力!$C$6)) -> -357638.8889 | G22: 67 | H22: 1017361.111 | I22: =IF(AC22<0,"-",+返済条件入力!$C$6/返済条件入力!$C$10/12) -> 833333.3333 | J22: =IF(AC22<0,"-",ISPMT(返済条件入力!$C$8/12,G22,返済条件入力!$C$10*12,返済条件入力!$C$6)) -> -184027.7778 | L22: 117 | M22: 843750 | N22: =IF(AB22<0,"-",+返済条件入力!$C$6/返済条件入力!$C$10/12) -> 833333.3333 | O22: =IF(AB22<0,"-",ISPMT(返済条件入力!$C$8/12,L22,返済条件入力!$C$10*12,返済条件入力!$C$6)) -> -10416.66667 | Q22: 167 | R22: - | S22: =IF(AA22<0,"-",+返済条件入力!$C$6/返済条件入力!$C$10/12) -> - | T22: =IF(AA22<0,"-",ISPMT(返済条件入力!$C$8/12,Q22,返済条件入力!$C$10*12,返済条件入力!$C$6)) -> - | V22: 217 | W22: - | X22: =IF(Z22<0,"-",+返済条件入力!$C$6/返済条件入力!$C$10/12) -> - | Y22: =IF(Z22<0,"-",ISPMT(返済条件入力!$C$8/12,V22,返済条件入力!$C$10*12,返済条件入力!$C$6)) -> - | Z22: -97 | AA22: -47 | AB22: 3 | AC22: 53 | AD22: 103
B23: 18 | C23: 1187500 | D23: =IF(AD23<0,"-",+返済条件入力!$C$6/返済条件入力!$C$10/12) -> 833333.3333 | E23: =IF(AD23<0,"-",ISPMT(返済条件入力!$C$8/12,B23,返済条件入力!$C$10*12,返済条件入力!$C$6)) -> -354166.6667 | G23: 68 | H23: 1013888.889 | I23: =IF(AC23<0,"-",+返済条件入力!$C$6/返済条件入力!$C$10/12) -> 833333.3333 | J23: =IF(AC23<0,"-",ISPMT(返済条件入力!$C$8/12,G23,返済条件入力!$C$10*12,返済条件入力!$C$6)) -> -180555.5556 | L23: 118 | M23: 840277.7778 | N23: =IF(AB23<0,"-",+返済条件入力!$C$6/返済条件入力!$C$10/12) -> 833333.3333 | O23: =IF(AB23<0,"-",ISPMT(返済条件入力!$C$8/12,L23,返済条件入力!$C$10*12,返済条件入力!$C$6)) -> -6944.444444 | Q23: 168 | R23: - | S23: =IF(AA23<0,"-",+返済条件入力!$C$6/返済条件入力!$C$10/12) -> - | T23: =IF(AA23<0,"-",ISPMT(返済条件入力!$C$8/12,Q23,返済条件入力!$C$10*12,返済条件入力!$C$6)) -> - | V23: 218 | W23: - | X23: =IF(Z23<0,"-",+返済条件入力!$C$6/返済条件入力!$C$10/12) -> - | Y23: =IF(Z23<0,"-",ISPMT(返済条件入力!$C$8/12,V23,返済条件入力!$C$10*12,返済条件入力!$C$6)) -> - | Z23: -98 | AA23: -48 | AB23: 2 | AC23: 52 | AD23: 102
B24: 19 | C24: 1184027.778 | D24: =IF(AD24<0,"-",+返済条件入力!$C$6/返済条件入力!$C$10/12) -> 833333.3333 | E24: =IF(AD24<0,"-",ISPMT(返済条件入力!$C$8/12,B24,返済条件入力!$C$10*12,返済条件入力!$C$6)) -> -350694.4444 | G24: 69 | H24: 1010416.667 | I24: =IF(AC24<0,"-",+返済条件入力!$C$6/返済条件入力!$C$10/12) -> 833333.3333 | J24: =IF(AC24<0,"-",ISPMT(返済条件入力!$C$8/12,G24,返済条件入力!$C$10*12,返済条件入力!$C$6)) -> -177083.3333 | L24: 119 | M24: 836805.5556 | N24: =IF(AB24<0,"-",+返済条件入力!$C$6/返済条件入力!$C$10/12) -> 833333.3333 | O24: =IF(AB24<0,"-",ISPMT(返済条件入力!$C$8/12,L24,返済条件入力!$C$10*12,返済条件入力!$C$6)) -> -3472.222222 | Q24: 169 | R24: - | S24: =IF(AA24<0,"-",+返済条件入力!$C$6/返済条件入力!$C$10/12) -> - | T24: =IF(AA24<0,"-",ISPMT(返済条件入力!$C$8/12,Q24,返済条件入力!$C$10*12,返済条件入力!$C$6)) -> - | V24: 219 | W24: - | X24: =IF(Z24<0,"-",+返済条件入力!$C$6/返済条件入力!$C$10/12) -> - | Y24: =IF(Z24<0,"-",ISPMT(返済条件入力!$C$8/12,V24,返済条件入力!$C$10*12,返済条件入力!$C$6)) -> - | Z24: -99 | AA24: -49 | AB24: 1 | AC24: 51 | AD24: 101
B25: 20 | C25: 1180555.556 | D25: =IF(AD25<0,"-",+返済条件入力!$C$6/返済条件入力!$C$10/12) -> 833333.3333 | E25: =IF(AD25<0,"-",ISPMT(返済条件入力!$C$8/12,B25,返済条件入力!$C$10*12,返済条件入力!$C$6)) -> -347222.2222 | G25: 70 | H25: 1006944.444 | I25: =IF(AC25<0,"-",+返済条件入力!$C$6/返済条件入力!$C$10/12) -> 833333.3333 | J25: =IF(AC25<0,"-",ISPMT(返済条件入力!$C$8/12,G25,返済条件入力!$C$10*12,返済条件入力!$C$6)) -> -173611.1111 | L25: 120 | M25: 833333.3333 | N25: =IF(AB25<0,"-",+返済条件入力!$C$6/返済条件入力!$C$10/12) -> 833333.3333 | O25: =IF(AB25<0,"-",ISPMT(返済条件入力!$C$8/12,L25,返済条件入力!$C$10*12,返済条件入力!$C$6)) -> 0 | Q25: 170 | R25: - | S25: =IF(AA25<0,"-",+返済条件入力!$C$6/返済条件入力!$C$10/12) -> - | T25: =IF(AA25<0,"-",ISPMT(返済条件入力!$C$8/12,Q25,返済条件入力!$C$10*12,返済条件入力!$C$6)) -> - | V25: 220 | W25: - | X25: =IF(Z25<0,"-",+返済条件入力!$C$6/返済条件入力!$C$10/12) -> - | Y25: =IF(Z25<0,"-",ISPMT(返済条件入力!$C$8/12,V25,返済条件入力!$C$10*12,返済条件入力!$C$6)) -> - | Z25: -100 | AA25: -50 | AB25: 0 | AC25: 50 | AD25: 100
B26: 21 | C26: 1177083.333 | D26: =IF(AD26<0,"-",+返済条件入力!$C$6/返済条件入力!$C$10/12) -> 833333.3333 | E26: =IF(AD26<0,"-",ISPMT(返済条件入力!$C$8/12,B26,返済条件入力!$C$10*12,返済条件入力!$C$6)) -> -343750 | G26: 71 | H26: 1003472.222 | I26: =IF(AC26<0,"-",+返済条件入力!$C$6/返済条件入力!$C$10/12) -> 833333.3333 | J26: =IF(AC26<0,"-",ISPMT(返済条件入力!$C$8/12,G26,返済条件入力!$C$10*12,返済条件入力!$C$6)) -> -170138.8889 | L26: 121 | M26: - | N26: =IF(AB26<0,"-",+返済条件入力!$C$6/返済条件入力!$C$10/12) -> - | O26: =IF(AB26<0,"-",ISPMT(返済条件入力!$C$8/12,L26,返済条件入力!$C$10*12,返済条件入力!$C$6)) -> - | Q26: 171 | R26: - | S26: =IF(AA26<0,"-",+返済条件入力!$C$6/返済条件入力!$C$10/12) -> - | T26: =IF(AA26<0,"-",ISPMT(返済条件入力!$C$8/12,Q26,返済条件入力!$C$10*12,返済条件入力!$C$6)) -> - | V26: 221 | W26: - | X26: =IF(Z26<0,"-",+返済条件入力!$C$6/返済条件入力!$C$10/12) -> - | Y26: =IF(Z26<0,"-",ISPMT(返済条件入力!$C$8/12,V26,返済条件入力!$C$10*12,返済条件入力!$C$6)) -> - | Z26: -101 | AA26: -51 | AB26: -1 | AC26: 49 | AD26: 99
B27: 22 | C27: 1173611.111 | D27: =IF(AD27<0,"-",+返済条件入力!$C$6/返済条件入力!$C$10/12) -> 833333.3333 | E27: =IF(AD27<0,"-",ISPMT(返済条件入力!$C$8/12,B27,返済条件入力!$C$10*12,返済条件入力!$C$6)) -> -340277.7778 | G27: 72 | H27: 1000000 | I27: =IF(AC27<0,"-",+返済条件入力!$C$6/返済条件入力!$C$10/12) -> 833333.3333 | J27: =IF(AC27<0,"-",ISPMT(返済条件入力!$C$8/12,G27,返済条件入力!$C$10*12,返済条件入力!$C$6)) -> -166666.6667 | L27: 122 | M27: - | N27: =IF(AB27<0,"-",+返済条件入力!$C$6/返済条件入力!$C$10/12) -> - | O27: =IF(AB27<0,"-",ISPMT(返済条件入力!$C$8/12,L27,返済条件入力!$C$10*12,返済条件入力!$C$6)) -> - | Q27: 172 | R27: - | S27: =IF(AA27<0,"-",+返済条件入力!$C$6/返済条件入力!$C$10/12) -> - | T27: =IF(AA27<0,"-",ISPMT(返済条件入力!$C$8/12,Q27,返済条件入力!$C$10*12,返済条件入力!$C$6)) -> - | V27: 222 | W27: - | X27: =IF(Z27<0,"-",+返済条件入力!$C$6/返済条件入力!$C$10/12) -> - | Y27: =IF(Z27<0,"-",ISPMT(返済条件入力!$C$8/12,V27,返済条件入力!$C$10*12,返済条件入力!$C$6)) -> - | Z27: -102 | AA27: -52 | AB27: -2 | AC27: 48 | AD27: 98
B28: 23 | C28: 1170138.889 | D28: =IF(AD28<0,"-",+返済条件入力!$C$6/返済条件入力!$C$10/12) -> 833333.3333 | E28: =IF(AD28<0,"-",ISPMT(返済条件入力!$C$8/12,B28,返済条件入力!$C$10*12,返済条件入力!$C$6)) -> -336805.5556 | G28: 73 | H28: 996527.7778 | I28: =IF(AC28<0,"-",+返済条件入力!$C$6/返済条件入力!$C$10/12) -> 833333.3333 | J28: =IF(AC28<0,"-",ISPMT(返済条件入力!$C$8/12,G28,返済条件入力!$C$10*12,返済条件入力!$C$6)) -> -163194.4444 | L28: 123 | M28: - | N28: =IF(AB28<0,"-",+返済条件入力!$C$6/返済条件入力!$C$10/12) -> - | O28: =IF(AB28<0,"-",ISPMT(返済条件入力!$C$8/12,L28,返済条件入力!$C$10*12,返済条件入力!$C$6)) -> - | Q28: 173 | R28: - | S28: =IF(AA28<0,"-",+返済条件入力!$C$6/返済条件入力!$C$10/12) -> - | T28: =IF(AA28<0,"-",ISPMT(返済条件入力!$C$8/12,Q28,返済条件入力!$C$10*12,返済条件入力!$C$6)) -> - | V28: 223 | W28: - | X28: =IF(Z28<0,"-",+返済条件入力!$C$6/返済条件入力!$C$10/12) -> - | Y28: =IF(Z28<0,"-",ISPMT(返済条件入力!$C$8/12,V28,返済条件入力!$C$10*12,返済条件入力!$C$6)) -> - | Z28: -103 | AA28: -53 | AB28: -3 | AC28: 47 | AD28: 97
B29: 24 | C29: 1166666.667 | D29: =IF(AD29<0,"-",+返済条件入力!$C$6/返済条件入力!$C$10/12) -> 833333.3333 | E29: =IF(AD29<0,"-",ISPMT(返済条件入力!$C$8/12,B29,返済条件入力!$C$10*12,返済条件入力!$C$6)) -> -333333.3333 | G29: 74 | H29: 993055.5556 | I29: =IF(AC29<0,"-",+返済条件入力!$C$6/返済条件入力!$C$10/12) -> 833333.3333 | J29: =IF(AC29<0,"-",ISPMT(返済条件入力!$C$8/12,G29,返済条件入力!$C$10*12,返済条件入力!$C$6)) -> -159722.2222 | L29: 124 | M29: - | N29: =IF(AB29<0,"-",+返済条件入力!$C$6/返済条件入力!$C$10/12) -> - | O29: =IF(AB29<0,"-",ISPMT(返済条件入力!$C$8/12,L29,返済条件入力!$C$10*12,返済条件入力!$C$6)) -> - | Q29: 174 | R29: - | S29: =IF(AA29<0,"-",+返済条件入力!$C$6/返済条件入力!$C$10/12) -> - | T29: =IF(AA29<0,"-",ISPMT(返済条件入力!$C$8/12,Q29,返済条件入力!$C$10*12,返済条件入力!$C$6)) -> - | V29: 224 | W29: - | X29: =IF(Z29<0,"-",+返済条件入力!$C$6/返済条件入力!$C$10/12) -> - | Y29: =IF(Z29<0,"-",ISPMT(返済条件入力!$C$8/12,V29,返済条件入力!$C$10*12,返済条件入力!$C$6)) -> - | Z29: -104 | AA29: -54 | AB29: -4 | AC29: 46 | AD29: 96
B30: 25 | C30: 1163194.444 | D30: =IF(AD30<0,"-",+返済条件入力!$C$6/返済条件入力!$C$10/12) -> 833333.3333 | E30: =IF(AD30<0,"-",ISPMT(返済条件入力!$C$8/12,B30,返済条件入力!$C$10*12,返済条件入力!$C$6)) -> -329861.1111 | G30: 75 | H30: 989583.3333 | I30: =IF(AC30<0,"-",+返済条件入力!$C$6/返済条件入力!$C$10/12) -> 833333.3333 | J30: =IF(AC30<0,"-",ISPMT(返済条件入力!$C$8/12,G30,返済条件入力!$C$10*12,返済条件入力!$C$6)) -> -156250 | L30: 125 | M30: - | N30: =IF(AB30<0,"-",+返済条件入力!$C$6/返済条件入力!$C$10/12) -> - | O30: =IF(AB30<0,"-",ISPMT(返済条件入力!$C$8/12,L30,返済条件入力!$C$10*12,返済条件入力!$C$6)) -> - | Q30: 175 | R30: - | S30: =IF(AA30<0,"-",+返済条件入力!$C$6/返済条件入力!$C$10/12) -> - | T30: =IF(AA30<0,"-",ISPMT(返済条件入力!$C$8/12,Q30,返済条件入力!$C$10*12,返済条件入力!$C$6)) -> - | V30: 225 | W30: - | X30: =IF(Z30<0,"-",+返済条件入力!$C$6/返済条件入力!$C$10/12) -> - | Y30: =IF(Z30<0,"-",ISPMT(返済条件入力!$C$8/12,V30,返済条件入力!$C$10*12,返済条件入力!$C$6)) -> - | Z30: -105 | AA30: -55 | AB30: -5 | AC30: 45 | AD30: 95
B31: 26 | C31: 1159722.222 | D31: =IF(AD31<0,"-",+返済条件入力!$C$6/返済条件入力!$C$10/12) -> 833333.3333 | E31: =IF(AD31<0,"-",ISPMT(返済条件入力!$C$8/12,B31,返済条件入力!$C$10*12,返済条件入力!$C$6)) -> -326388.8889 | G31: 76 | H31: 986111.1111 | I31: =IF(AC31<0,"-",+返済条件入力!$C$6/返済条件入力!$C$10/12) -> 833333.3333 | J31: =IF(AC31<0,"-",ISPMT(返済条件入力!$C$8/12,G31,返済条件入力!$C$10*12,返済条件入力!$C$6)) -> -152777.7778 | L31: 126 | M31: - | N31: =IF(AB31<0,"-",+返済条件入力!$C$6/返済条件入力!$C$10/12) -> - | O31: =IF(AB31<0,"-",ISPMT(返済条件入力!$C$8/12,L31,返済条件入力!$C$10*12,返済条件入力!$C$6)) -> - | Q31: 176 | R31: - | S31: =IF(AA31<0,"-",+返済条件入力!$C$6/返済条件入力!$C$10/12) -> - | T31: =IF(AA31<0,"-",ISPMT(返済条件入力!$C$8/12,Q31,返済条件入力!$C$10*12,返済条件入力!$C$6)) -> - | V31: 226 | W31: - | X31: =IF(Z31<0,"-",+返済条件入力!$C$6/返済条件入力!$C$10/12) -> - | Y31: =IF(Z31<0,"-",ISPMT(返済条件入力!$C$8/12,V31,返済条件入力!$C$10*12,返済条件入力!$C$6)) -> - | Z31: -106 | AA31: -56 | AB31: -6 | AC31: 44 | AD31: 94
B32: 27 | C32: 1156250 | D32: =IF(AD32<0,"-",+返済条件入力!$C$6/返済条件入力!$C$10/12) -> 833333.3333 | E32: =IF(AD32<0,"-",ISPMT(返済条件入力!$C$8/12,B32,返済条件入力!$C$10*12,返済条件入力!$C$6)) -> -322916.6667 | G32: 77 | H32: 982638.8889 | I32: =IF(AC32<0,"-",+返済条件入力!$C$6/返済条件入力!$C$10/12) -> 833333.3333 | J32: =IF(AC32<0,"-",ISPMT(返済条件入力!$C$8/12,G32,返済条件入力!$C$10*12,返済条件入力!$C$6)) -> -149305.5556 | L32: 127 | M32: - | N32: =IF(AB32<0,"-",+返済条件入力!$C$6/返済条件入力!$C$10/12) -> - | O32: =IF(AB32<0,"-",ISPMT(返済条件入力!$C$8/12,L32,返済条件入力!$C$10*12,返済条件入力!$C$6)) -> - | Q32: 177 | R32: - | S32: =IF(AA32<0,"-",+返済条件入力!$C$6/返済条件入力!$C$10/12) -> - | T32: =IF(AA32<0,"-",ISPMT(返済条件入力!$C$8/12,Q32,返済条件入力!$C$10*12,返済条件入力!$C$6)) -> - | V32: 227 | W32: - | X32: =IF(Z32<0,"-",+返済条件入力!$C$6/返済条件入力!$C$10/12) -> - | Y32: =IF(Z32<0,"-",ISPMT(返済条件入力!$C$8/12,V32,返済条件入力!$C$10*12,返済条件入力!$C$6)) -> - | Z32: -107 | AA32: -57 | AB32: -7 | AC32: 43 | AD32: 93
B33: 28 | C33: 1152777.778 | D33: =IF(AD33<0,"-",+返済条件入力!$C$6/返済条件入力!$C$10/12) -> 833333.3333 | E33: =IF(AD33<0,"-",ISPMT(返済条件入力!$C$8/12,B33,返済条件入力!$C$10*12,返済条件入力!$C$6)) -> -319444.4444 | G33: 78 | H33: 979166.6667 | I33: =IF(AC33<0,"-",+返済条件入力!$C$6/返済条件入力!$C$10/12) -> 833333.3333 | J33: =IF(AC33<0,"-",ISPMT(返済条件入力!$C$8/12,G33,返済条件入力!$C$10*12,返済条件入力!$C$6)) -> -145833.3333 | L33: 128 | M33: - | N33: =IF(AB33<0,"-",+返済条件入力!$C$6/返済条件入力!$C$10/12) -> - | O33: =IF(AB33<0,"-",ISPMT(返済条件入力!$C$8/12,L33,返済条件入力!$C$10*12,返済条件入力!$C$6)) -> - | Q33: 178 | R33: - | S33: =IF(AA33<0,"-",+返済条件入力!$C$6/返済条件入力!$C$10/12) -> - | T33: =IF(AA33<0,"-",ISPMT(返済条件入力!$C$8/12,Q33,返済条件入力!$C$10*12,返済条件入力!$C$6)) -> - | V33: 228 | W33: - | X33: =IF(Z33<0,"-",+返済条件入力!$C$6/返済条件入力!$C$10/12) -> - | Y33: =IF(Z33<0,"-",ISPMT(返済条件入力!$C$8/12,V33,返済条件入力!$C$10*12,返済条件入力!$C$6)) -> - | Z33: -108 | AA33: -58 | AB33: -8 | AC33: 42 | AD33: 92
B34: 29 | C34: 1149305.556 | D34: =IF(AD34<0,"-",+返済条件入力!$C$6/返済条件入力!$C$10/12) -> 833333.3333 | E34: =IF(AD34<0,"-",ISPMT(返済条件入力!$C$8/12,B34,返済条件入力!$C$10*12,返済条件入力!$C$6)) -> -315972.2222 | G34: 79 | H34: 975694.4444 | I34: =IF(AC34<0,"-",+返済条件入力!$C$6/返済条件入力!$C$10/12) -> 833333.3333 | J34: =IF(AC34<0,"-",ISPMT(返済条件入力!$C$8/12,G34,返済条件入力!$C$10*12,返済条件入力!$C$6)) -> -142361.1111 | L34: 129 | M34: - | N34: =IF(AB34<0,"-",+返済条件入力!$C$6/返済条件入力!$C$10/12) -> - | O34: =IF(AB34<0,"-",ISPMT(返済条件入力!$C$8/12,L34,返済条件入力!$C$10*12,返済条件入力!$C$6)) -> - | Q34: 179 | R34: - | S34: =IF(AA34<0,"-",+返済条件入力!$C$6/返済条件入力!$C$10/12) -> - | T34: =IF(AA34<0,"-",ISPMT(返済条件入力!$C$8/12,Q34,返済条件入力!$C$10*12,返済条件入力!$C$6)) -> - | V34: 229 | W34: - | X34: =IF(Z34<0,"-",+返済条件入力!$C$6/返済条件入力!$C$10/12) -> - | Y34: =IF(Z34<0,"-",ISPMT(返済条件入力!$C$8/12,V34,返済条件入力!$C$10*12,返済条件入力!$C$6)) -> - | Z34: -109 | AA34: -59 | AB34: -9 | AC34: 41 | AD34: 91
B35: 30 | C35: 1145833.333 | D35: =IF(AD35<0,"-",+返済条件入力!$C$6/返済条件入力!$C$10/12) -> 833333.3333 | E35: =IF(AD35<0,"-",ISPMT(返済条件入力!$C$8/12,B35,返済条件入力!$C$10*12,返済条件入力!$C$6)) -> -312500 | G35: 80 | H35: 972222.2222 | I35: =IF(AC35<0,"-",+返済条件入力!$C$6/返済条件入力!$C$10/12) -> 833333.3333 | J35: =IF(AC35<0,"-",ISPMT(返済条件入力!$C$8/12,G35,返済条件入力!$C$10*12,返済条件入力!$C$6)) -> -138888.8889 | L35: 130 | M35: - | N35: =IF(AB35<0,"-",+返済条件入力!$C$6/返済条件入力!$C$10/12) -> - | O35: =IF(AB35<0,"-",ISPMT(返済条件入力!$C$8/12,L35,返済条件入力!$C$10*12,返済条件入力!$C$6)) -> - | Q35: 180 | R35: - | S35: =IF(AA35<0,"-",+返済条件入力!$C$6/返済条件入力!$C$10/12) -> - | T35: =IF(AA35<0,"-",ISPMT(返済条件入力!$C$8/12,Q35,返済条件入力!$C$10*12,返済条件入力!$C$6)) -> - | V35: 230 | W35: - | X35: =IF(Z35<0,"-",+返済条件入力!$C$6/返済条件入力!$C$10/12) -> - | Y35: =IF(Z35<0,"-",ISPMT(返済条件入力!$C$8/12,V35,返済条件入力!$C$10*12,返済条件入力!$C$6)) -> - | Z35: -110 | AA35: -60 | AB35: -10 | AC35: 40 | AD35: 90
B36: 31 | C36: 1142361.111 | D36: =IF(AD36<0,"-",+返済条件入力!$C$6/返済条件入力!$C$10/12) -> 833333.3333 | E36: =IF(AD36<0,"-",ISPMT(返済条件入力!$C$8/12,B36,返済条件入力!$C$10*12,返済条件入力!$C$6)) -> -309027.7778 | G36: 81 | H36: 968750 | I36: =IF(AC36<0,"-",+返済条件入力!$C$6/返済条件入力!$C$10/12) -> 833333.3333 | J36: =IF(AC36<0,"-",ISPMT(返済条件入力!$C$8/12,G36,返済条件入力!$C$10*12,返済条件入力!$C$6)) -> -135416.6667 | L36: 131 | M36: - | N36: =IF(AB36<0,"-",+返済条件入力!$C$6/返済条件入力!$C$10/12) -> - | O36: =IF(AB36<0,"-",ISPMT(返済条件入力!$C$8/12,L36,返済条件入力!$C$10*12,返済条件入力!$C$6)) -> - | Q36: 181 | R36: - | S36: =IF(AA36<0,"-",+返済条件入力!$C$6/返済条件入力!$C$10/12) -> - | T36: =IF(AA36<0,"-",ISPMT(返済条件入力!$C$8/12,Q36,返済条件入力!$C$10*12,返済条件入力!$C$6)) -> - | V36: 231 | W36: - | X36: =IF(Z36<0,"-",+返済条件入力!$C$6/返済条件入力!$C$10/12) -> - | Y36: =IF(Z36<0,"-",ISPMT(返済条件入力!$C$8/12,V36,返済条件入力!$C$10*12,返済条件入力!$C$6)) -> - | Z36: -111 | AA36: -61 | AB36: -11 | AC36: 39 | AD36: 89
B37: 32 | C37: 1138888.889 | D37: =IF(AD37<0,"-",+返済条件入力!$C$6/返済条件入力!$C$10/12) -> 833333.3333 | E37: =IF(AD37<0,"-",ISPMT(返済条件入力!$C$8/12,B37,返済条件入力!$C$10*12,返済条件入力!$C$6)) -> -305555.5556 | G37: 82 | H37: 965277.7778 | I37: =IF(AC37<0,"-",+返済条件入力!$C$6/返済条件入力!$C$10/12) -> 833333.3333 | J37: =IF(AC37<0,"-",ISPMT(返済条件入力!$C$8/12,G37,返済条件入力!$C$10*12,返済条件入力!$C$6)) -> -131944.4444 | L37: 132 | M37: - | N37: =IF(AB37<0,"-",+返済条件入力!$C$6/返済条件入力!$C$10/12) -> - | O37: =IF(AB37<0,"-",ISPMT(返済条件入力!$C$8/12,L37,返済条件入力!$C$10*12,返済条件入力!$C$6)) -> - | Q37: 182 | R37: - | S37: =IF(AA37<0,"-",+返済条件入力!$C$6/返済条件入力!$C$10/12) -> - | T37: =IF(AA37<0,"-",ISPMT(返済条件入力!$C$8/12,Q37,返済条件入力!$C$10*12,返済条件入力!$C$6)) -> - | V37: 232 | W37: - | X37: =IF(Z37<0,"-",+返済条件入力!$C$6/返済条件入力!$C$10/12) -> - | Y37: =IF(Z37<0,"-",ISPMT(返済条件入力!$C$8/12,V37,返済条件入力!$C$10*12,返済条件入力!$C$6)) -> - | Z37: -112 | AA37: -62 | AB37: -12 | AC37: 38 | AD37: 88
B38: 33 | C38: 1135416.667 | D38: =IF(AD38<0,"-",+返済条件入力!$C$6/返済条件入力!$C$10/12) -> 833333.3333 | E38: =IF(AD38<0,"-",ISPMT(返済条件入力!$C$8/12,B38,返済条件入力!$C$10*12,返済条件入力!$C$6)) -> -302083.3333 | G38: 83 | H38: 961805.5556 | I38: =IF(AC38<0,"-",+返済条件入力!$C$6/返済条件入力!$C$10/12) -> 833333.3333 | J38: =IF(AC38<0,"-",ISPMT(返済条件入力!$C$8/12,G38,返済条件入力!$C$10*12,返済条件入力!$C$6)) -> -128472.2222 | L38: 133 | M38: - | N38: =IF(AB38<0,"-",+返済条件入力!$C$6/返済条件入力!$C$10/12) -> - | O38: =IF(AB38<0,"-",ISPMT(返済条件入力!$C$8/12,L38,返済条件入力!$C$10*12,返済条件入力!$C$6)) -> - | Q38: 183 | R38: - | S38: =IF(AA38<0,"-",+返済条件入力!$C$6/返済条件入力!$C$10/12) -> - | T38: =IF(AA38<0,"-",ISPMT(返済条件入力!$C$8/12,Q38,返済条件入力!$C$10*12,返済条件入力!$C$6)) -> - | V38: 233 | W38: - | X38: =IF(Z38<0,"-",+返済条件入力!$C$6/返済条件入力!$C$10/12) -> - | Y38: =IF(Z38<0,"-",ISPMT(返済条件入力!$C$8/12,V38,返済条件入力!$C$10*12,返済条件入力!$C$6)) -> - | Z38: -113 | AA38: -63 | AB38: -13 | AC38: 37 | AD38: 87
B39: 34 | C39: =IF(AD39<0,"-",+D39-E39) -> 1131944.444 | D39: =IF(AD39<0,"-",+返済条件入力!$C$6/返済条件入力!$C$10/12) -> 833333.3333 | E39: =IF(AD39<0,"-",ISPMT(返済条件入力!$C$8/12,B39,返済条件入力!$C$10*12,返済条件入力!$C$6)) -> -298611.1111 | G39: 84 | H39: 958333.3333 | I39: =IF(AC39<0,"-",+返済条件入力!$C$6/返済条件入力!$C$10/12) -> 833333.3333 | J39: =IF(AC39<0,"-",ISPMT(返済条件入力!$C$8/12,G39,返済条件入力!$C$10*12,返済条件入力!$C$6)) -> -125000 | L39: 134 | M39: - | N39: =IF(AB39<0,"-",+返済条件入力!$C$6/返済条件入力!$C$10/12) -> - | O39: =IF(AB39<0,"-",ISPMT(返済条件入力!$C$8/12,L39,返済条件入力!$C$10*12,返済条件入力!$C$6)) -> - | Q39: 184 | R39: - | S39: =IF(AA39<0,"-",+返済条件入力!$C$6/返済条件入力!$C$10/12) -> - | T39: =IF(AA39<0,"-",ISPMT(返済条件入力!$C$8/12,Q39,返済条件入力!$C$10*12,返済条件入力!$C$6)) -> - | V39: 234 | W39: - | X39: =IF(Z39<0,"-",+返済条件入力!$C$6/返済条件入力!$C$10/12) -> - | Y39: =IF(Z39<0,"-",ISPMT(返済条件入力!$C$8/12,V39,返済条件入力!$C$10*12,返済条件入力!$C$6)) -> - | Z39: -114 | AA39: -64 | AB39: -14 | AC39: 36 | AD39: 86
B40: 35 | C40: 1128472.222 | D40: =IF(AD40<0,"-",+返済条件入力!$C$6/返済条件入力!$C$10/12) -> 833333.3333 | E40: =IF(AD40<0,"-",ISPMT(返済条件入力!$C$8/12,B40,返済条件入力!$C$10*12,返済条件入力!$C$6)) -> -295138.8889 | G40: 85 | H40: 954861.1111 | I40: =IF(AC40<0,"-",+返済条件入力!$C$6/返済条件入力!$C$10/12) -> 833333.3333 | J40: =IF(AC40<0,"-",ISPMT(返済条件入力!$C$8/12,G40,返済条件入力!$C$10*12,返済条件入力!$C$6)) -> -121527.7778 | L40: 135 | M40: - | N40: =IF(AB40<0,"-",+返済条件入力!$C$6/返済条件入力!$C$10/12) -> - | O40: =IF(AB40<0,"-",ISPMT(返済条件入力!$C$8/12,L40,返済条件入力!$C$10*12,返済条件入力!$C$6)) -> - | Q40: 185 | R40: - | S40: =IF(AA40<0,"-",+返済条件入力!$C$6/返済条件入力!$C$10/12) -> - | T40: =IF(AA40<0,"-",ISPMT(返済条件入力!$C$8/12,Q40,返済条件入力!$C$10*12,返済条件入力!$C$6)) -> - | V40: 235 | W40: - | X40: =IF(Z40<0,"-",+返済条件入力!$C$6/返済条件入力!$C$10/12) -> - | Y40: =IF(Z40<0,"-",ISPMT(返済条件入力!$C$8/12,V40,返済条件入力!$C$10*12,返済条件入力!$C$6)) -> - | Z40: -115 | AA40: -65 | AB40: -15 | AC40: 35 | AD40: 85
B41: 36 | C41: 1125000 | D41: =IF(AD41<0,"-",+返済条件入力!$C$6/返済条件入力!$C$10/12) -> 833333.3333 | E41: =IF(AD41<0,"-",ISPMT(返済条件入力!$C$8/12,B41,返済条件入力!$C$10*12,返済条件入力!$C$6)) -> -291666.6667 | G41: 86 | H41: 951388.8889 | I41: =IF(AC41<0,"-",+返済条件入力!$C$6/返済条件入力!$C$10/12) -> 833333.3333 | J41: =IF(AC41<0,"-",ISPMT(返済条件入力!$C$8/12,G41,返済条件入力!$C$10*12,返済条件入力!$C$6)) -> -118055.5556 | L41: 136 | M41: - | N41: =IF(AB41<0,"-",+返済条件入力!$C$6/返済条件入力!$C$10/12) -> - | O41: =IF(AB41<0,"-",ISPMT(返済条件入力!$C$8/12,L41,返済条件入力!$C$10*12,返済条件入力!$C$6)) -> - | Q41: 186 | R41: - | S41: =IF(AA41<0,"-",+返済条件入力!$C$6/返済条件入力!$C$10/12) -> - | T41: =IF(AA41<0,"-",ISPMT(返済条件入力!$C$8/12,Q41,返済条件入力!$C$10*12,返済条件入力!$C$6)) -> - | V41: 236 | W41: - | X41: =IF(Z41<0,"-",+返済条件入力!$C$6/返済条件入力!$C$10/12) -> - | Y41: =IF(Z41<0,"-",ISPMT(返済条件入力!$C$8/12,V41,返済条件入力!$C$10*12,返済条件入力!$C$6)) -> - | Z41: -116 | AA41: -66 | AB41: -16 | AC41: 34 | AD41: 84
B42: 37 | C42: 1121527.778 | D42: =IF(AD42<0,"-",+返済条件入力!$C$6/返済条件入力!$C$10/12) -> 833333.3333 | E42: =IF(AD42<0,"-",ISPMT(返済条件入力!$C$8/12,B42,返済条件入力!$C$10*12,返済条件入力!$C$6)) -> -288194.4444 | G42: 87 | H42: 947916.6667 | I42: =IF(AC42<0,"-",+返済条件入力!$C$6/返済条件入力!$C$10/12) -> 833333.3333 | J42: =IF(AC42<0,"-",ISPMT(返済条件入力!$C$8/12,G42,返済条件入力!$C$10*12,返済条件入力!$C$6)) -> -114583.3333 | L42: 137 | M42: - | N42: =IF(AB42<0,"-",+返済条件入力!$C$6/返済条件入力!$C$10/12) -> - | O42: =IF(AB42<0,"-",ISPMT(返済条件入力!$C$8/12,L42,返済条件入力!$C$10*12,返済条件入力!$C$6)) -> - | Q42: 187 | R42: - | S42: =IF(AA42<0,"-",+返済条件入力!$C$6/返済条件入力!$C$10/12) -> - | T42: =IF(AA42<0,"-",ISPMT(返済条件入力!$C$8/12,Q42,返済条件入力!$C$10*12,返済条件入力!$C$6)) -> - | V42: 237 | W42: - | X42: =IF(Z42<0,"-",+返済条件入力!$C$6/返済条件入力!$C$10/12) -> - | Y42: =IF(Z42<0,"-",ISPMT(返済条件入力!$C$8/12,V42,返済条件入力!$C$10*12,返済条件入力!$C$6)) -> - | Z42: -117 | AA42: -67 | AB42: -17 | AC42: 33 | AD42: 83
B43: 38 | C43: 1118055.556 | D43: =IF(AD43<0,"-",+返済条件入力!$C$6/返済条件入力!$C$10/12) -> 833333.3333 | E43: =IF(AD43<0,"-",ISPMT(返済条件入力!$C$8/12,B43,返済条件入力!$C$10*12,返済条件入力!$C$6)) -> -284722.2222 | G43: 88 | H43: 944444.4444 | I43: =IF(AC43<0,"-",+返済条件入力!$C$6/返済条件入力!$C$10/12) -> 833333.3333 | J43: =IF(AC43<0,"-",ISPMT(返済条件入力!$C$8/12,G43,返済条件入力!$C$10*12,返済条件入力!$C$6)) -> -111111.1111 | L43: 138 | M43: - | N43: =IF(AB43<0,"-",+返済条件入力!$C$6/返済条件入力!$C$10/12) -> - | O43: =IF(AB43<0,"-",ISPMT(返済条件入力!$C$8/12,L43,返済条件入力!$C$10*12,返済条件入力!$C$6)) -> - | Q43: 188 | R43: - | S43: =IF(AA43<0,"-",+返済条件入力!$C$6/返済条件入力!$C$10/12) -> - | T43: =IF(AA43<0,"-",ISPMT(返済条件入力!$C$8/12,Q43,返済条件入力!$C$10*12,返済条件入力!$C$6)) -> - | V43: 238 | W43: - | X43: =IF(Z43<0,"-",+返済条件入力!$C$6/返済条件入力!$C$10/12) -> - | Y43: =IF(Z43<0,"-",ISPMT(返済条件入力!$C$8/12,V43,返済条件入力!$C$10*12,返済条件入力!$C$6)) -> - | Z43: -118 | AA43: -68 | AB43: -18 | AC43: 32 | AD43: 82
B44: 39 | C44: 1114583.333 | D44: =IF(AD44<0,"-",+返済条件入力!$C$6/返済条件入力!$C$10/12) -> 833333.3333 | E44: =IF(AD44<0,"-",ISPMT(返済条件入力!$C$8/12,B44,返済条件入力!$C$10*12,返済条件入力!$C$6)) -> -281250 | G44: 89 | H44: 940972.2222 | I44: =IF(AC44<0,"-",+返済条件入力!$C$6/返済条件入力!$C$10/12) -> 833333.3333 | J44: =IF(AC44<0,"-",ISPMT(返済条件入力!$C$8/12,G44,返済条件入力!$C$10*12,返済条件入力!$C$6)) -> -107638.8889 | L44: 139 | M44: - | N44: =IF(AB44<0,"-",+返済条件入力!$C$6/返済条件入力!$C$10/12) -> - | O44: =IF(AB44<0,"-",ISPMT(返済条件入力!$C$8/12,L44,返済条件入力!$C$10*12,返済条件入力!$C$6)) -> - | Q44: 189 | R44: - | S44: =IF(AA44<0,"-",+返済条件入力!$C$6/返済条件入力!$C$10/12) -> - | T44: =IF(AA44<0,"-",ISPMT(返済条件入力!$C$8/12,Q44,返済条件入力!$C$10*12,返済条件入力!$C$6)) -> - | V44: 239 | W44: - | X44: =IF(Z44<0,"-",+返済条件入力!$C$6/返済条件入力!$C$10/12) -> - | Y44: =IF(Z44<0,"-",ISPMT(返済条件入力!$C$8/12,V44,返済条件入力!$C$10*12,返済条件入力!$C$6)) -> - | Z44: -119 | AA44: -69 | AB44: -19 | AC44: 31 | AD44: 81
B45: 40 | C45: 1111111.111 | D45: =IF(AD45<0,"-",+返済条件入力!$C$6/返済条件入力!$C$10/12) -> 833333.3333 | E45: =IF(AD45<0,"-",ISPMT(返済条件入力!$C$8/12,B45,返済条件入力!$C$10*12,返済条件入力!$C$6)) -> -277777.7778 | G45: 90 | H45: 937500 | I45: =IF(AC45<0,"-",+返済条件入力!$C$6/返済条件入力!$C$10/12) -> 833333.3333 | J45: =IF(AC45<0,"-",ISPMT(返済条件入力!$C$8/12,G45,返済条件入力!$C$10*12,返済条件入力!$C$6)) -> -104166.6667 | L45: 140 | M45: - | N45: =IF(AB45<0,"-",+返済条件入力!$C$6/返済条件入力!$C$10/12) -> - | O45: =IF(AB45<0,"-",ISPMT(返済条件入力!$C$8/12,L45,返済条件入力!$C$10*12,返済条件入力!$C$6)) -> - | Q45: 190 | R45: - | S45: =IF(AA45<0,"-",+返済条件入力!$C$6/返済条件入力!$C$10/12) -> - | T45: =IF(AA45<0,"-",ISPMT(返済条件入力!$C$8/12,Q45,返済条件入力!$C$10*12,返済条件入力!$C$6)) -> - | V45: 240 | W45: - | X45: =IF(Z45<0,"-",+返済条件入力!$C$6/返済条件入力!$C$10/12) -> - | Y45: =IF(Z45<0,"-",ISPMT(返済条件入力!$C$8/12,V45,返済条件入力!$C$10*12,返済条件入力!$C$6)) -> - | Z45: -120 | AA45: -70 | AB45: -20 | AC45: 30 | AD45: 80
B46: 41 | C46: 1107638.889 | D46: =IF(AD46<0,"-",+返済条件入力!$C$6/返済条件入力!$C$10/12) -> 833333.3333 | E46: =IF(AD46<0,"-",ISPMT(返済条件入力!$C$8/12,B46,返済条件入力!$C$10*12,返済条件入力!$C$6)) -> -274305.5556 | G46: 91 | H46: 934027.7778 | I46: =IF(AC46<0,"-",+返済条件入力!$C$6/返済条件入力!$C$10/12) -> 833333.3333 | J46: =IF(AC46<0,"-",ISPMT(返済条件入力!$C$8/12,G46,返済条件入力!$C$10*12,返済条件入力!$C$6)) -> -100694.4444 | L46: 141 | M46: - | N46: =IF(AB46<0,"-",+返済条件入力!$C$6/返済条件入力!$C$10/12) -> - | O46: =IF(AB46<0,"-",ISPMT(返済条件入力!$C$8/12,L46,返済条件入力!$C$10*12,返済条件入力!$C$6)) -> - | Q46: 191 | R46: - | S46: =IF(AA46<0,"-",+返済条件入力!$C$6/返済条件入力!$C$10/12) -> - | T46: =IF(AA46<0,"-",ISPMT(返済条件入力!$C$8/12,Q46,返済条件入力!$C$10*12,返済条件入力!$C$6)) -> - | V46: 241 | W46: - | X46: =IF(Z46<0,"-",+返済条件入力!$C$6/返済条件入力!$C$10/12) -> - | Y46: =IF(Z46<0,"-",ISPMT(返済条件入力!$C$8/12,V46,返済条件入力!$C$10*12,返済条件入力!$C$6)) -> - | Z46: -121 | AA46: -71 | AB46: -21 | AC46: 29 | AD46: 79
B47: 42 | C47: 1104166.667 | D47: =IF(AD47<0,"-",+返済条件入力!$C$6/返済条件入力!$C$10/12) -> 833333.3333 | E47: =IF(AD47<0,"-",ISPMT(返済条件入力!$C$8/12,B47,返済条件入力!$C$10*12,返済条件入力!$C$6)) -> -270833.3333 | G47: 92 | H47: 930555.5556 | I47: =IF(AC47<0,"-",+返済条件入力!$C$6/返済条件入力!$C$10/12) -> 833333.3333 | J47: =IF(AC47<0,"-",ISPMT(返済条件入力!$C$8/12,G47,返済条件入力!$C$10*12,返済条件入力!$C$6)) -> -97222.22222 | L47: 142 | M47: - | N47: =IF(AB47<0,"-",+返済条件入力!$C$6/返済条件入力!$C$10/12) -> - | O47: =IF(AB47<0,"-",ISPMT(返済条件入力!$C$8/12,L47,返済条件入力!$C$10*12,返済条件入力!$C$6)) -> - | Q47: 192 | R47: - | S47: =IF(AA47<0,"-",+返済条件入力!$C$6/返済条件入力!$C$10/12) -> - | T47: =IF(AA47<0,"-",ISPMT(返済条件入力!$C$8/12,Q47,返済条件入力!$C$10*12,返済条件入力!$C$6)) -> - | V47: 242 | W47: - | X47: =IF(Z47<0,"-",+返済条件入力!$C$6/返済条件入力!$C$10/12) -> - | Y47: =IF(Z47<0,"-",ISPMT(返済条件入力!$C$8/12,V47,返済条件入力!$C$10*12,返済条件入力!$C$6)) -> - | Z47: -122 | AA47: -72 | AB47: -22 | AC47: 28 | AD47: 78
B48: 43 | C48: 1100694.444 | D48: =IF(AD48<0,"-",+返済条件入力!$C$6/返済条件入力!$C$10/12) -> 833333.3333 | E48: =IF(AD48<0,"-",ISPMT(返済条件入力!$C$8/12,B48,返済条件入力!$C$10*12,返済条件入力!$C$6)) -> -267361.1111 | G48: 93 | H48: 927083.3333 | I48: =IF(AC48<0,"-",+返済条件入力!$C$6/返済条件入力!$C$10/12) -> 833333.3333 | J48: =IF(AC48<0,"-",ISPMT(返済条件入力!$C$8/12,G48,返済条件入力!$C$10*12,返済条件入力!$C$6)) -> -93750 | L48: 143 | M48: - | N48: =IF(AB48<0,"-",+返済条件入力!$C$6/返済条件入力!$C$10/12) -> - | O48: =IF(AB48<0,"-",ISPMT(返済条件入力!$C$8/12,L48,返済条件入力!$C$10*12,返済条件入力!$C$6)) -> - | Q48: 193 | R48: - | S48: =IF(AA48<0,"-",+返済条件入力!$C$6/返済条件入力!$C$10/12) -> - | T48: =IF(AA48<0,"-",ISPMT(返済条件入力!$C$8/12,Q48,返済条件入力!$C$10*12,返済条件入力!$C$6)) -> - | V48: 243 | W48: - | X48: =IF(Z48<0,"-",+返済条件入力!$C$6/返済条件入力!$C$10/12) -> - | Y48: =IF(Z48<0,"-",ISPMT(返済条件入力!$C$8/12,V48,返済条件入力!$C$10*12,返済条件入力!$C$6)) -> - | Z48: -123 | AA48: -73 | AB48: -23 | AC48: 27 | AD48: 77
B49: 44 | C49: 1097222.222 | D49: =IF(AD49<0,"-",+返済条件入力!$C$6/返済条件入力!$C$10/12) -> 833333.3333 | E49: =IF(AD49<0,"-",ISPMT(返済条件入力!$C$8/12,B49,返済条件入力!$C$10*12,返済条件入力!$C$6)) -> -263888.8889 | G49: 94 | H49: 923611.1111 | I49: =IF(AC49<0,"-",+返済条件入力!$C$6/返済条件入力!$C$10/12) -> 833333.3333 | J49: =IF(AC49<0,"-",ISPMT(返済条件入力!$C$8/12,G49,返済条件入力!$C$10*12,返済条件入力!$C$6)) -> -90277.77778 | L49: 144 | M49: - | N49: =IF(AB49<0,"-",+返済条件入力!$C$6/返済条件入力!$C$10/12) -> - | O49: =IF(AB49<0,"-",ISPMT(返済条件入力!$C$8/12,L49,返済条件入力!$C$10*12,返済条件入力!$C$6)) -> - | Q49: 194 | R49: - | S49: =IF(AA49<0,"-",+返済条件入力!$C$6/返済条件入力!$C$10/12) -> - | T49: =IF(AA49<0,"-",ISPMT(返済条件入力!$C$8/12,Q49,返済条件入力!$C$10*12,返済条件入力!$C$6)) -> - | V49: 244 | W49: - | X49: =IF(Z49<0,"-",+返済条件入力!$C$6/返済条件入力!$C$10/12) -> - | Y49: =IF(Z49<0,"-",ISPMT(返済条件入力!$C$8/12,V49,返済条件入力!$C$10*12,返済条件入力!$C$6)) -> - | Z49: -124 | AA49: -74 | AB49: -24 | AC49: 26 | AD49: 76
B50: 45 | C50: 1093750 | D50: =IF(AD50<0,"-",+返済条件入力!$C$6/返済条件入力!$C$10/12) -> 833333.3333 | E50: =IF(AD50<0,"-",ISPMT(返済条件入力!$C$8/12,B50,返済条件入力!$C$10*12,返済条件入力!$C$6)) -> -260416.6667 | G50: 95 | H50: 920138.8889 | I50: =IF(AC50<0,"-",+返済条件入力!$C$6/返済条件入力!$C$10/12) -> 833333.3333 | J50: =IF(AC50<0,"-",ISPMT(返済条件入力!$C$8/12,G50,返済条件入力!$C$10*12,返済条件入力!$C$6)) -> -86805.55556 | L50: 145 | M50: - | N50: =IF(AB50<0,"-",+返済条件入力!$C$6/返済条件入力!$C$10/12) -> - | O50: =IF(AB50<0,"-",ISPMT(返済条件入力!$C$8/12,L50,返済条件入力!$C$10*12,返済条件入力!$C$6)) -> - | Q50: 195 | R50: - | S50: =IF(AA50<0,"-",+返済条件入力!$C$6/返済条件入力!$C$10/12) -> - | T50: =IF(AA50<0,"-",ISPMT(返済条件入力!$C$8/12,Q50,返済条件入力!$C$10*12,返済条件入力!$C$6)) -> - | V50: 245 | W50: - | X50: =IF(Z50<0,"-",+返済条件入力!$C$6/返済条件入力!$C$10/12) -> - | Y50: =IF(Z50<0,"-",ISPMT(返済条件入力!$C$8/12,V50,返済条件入力!$C$10*12,返済条件入力!$C$6)) -> - | Z50: -125 | AA50: -75 | AB50: -25 | AC50: 25 | AD50: 75
B51: 46 | C51: 1090277.778 | D51: =IF(AD51<0,"-",+返済条件入力!$C$6/返済条件入力!$C$10/12) -> 833333.3333 | E51: =IF(AD51<0,"-",ISPMT(返済条件入力!$C$8/12,B51,返済条件入力!$C$10*12,返済条件入力!$C$6)) -> -256944.4444 | G51: 96 | H51: 916666.6667 | I51: =IF(AC51<0,"-",+返済条件入力!$C$6/返済条件入力!$C$10/12) -> 833333.3333 | J51: =IF(AC51<0,"-",ISPMT(返済条件入力!$C$8/12,G51,返済条件入力!$C$10*12,返済条件入力!$C$6)) -> -83333.33333 | L51: 146 | M51: - | N51: =IF(AB51<0,"-",+返済条件入力!$C$6/返済条件入力!$C$10/12) -> - | O51: =IF(AB51<0,"-",ISPMT(返済条件入力!$C$8/12,L51,返済条件入力!$C$10*12,返済条件入力!$C$6)) -> - | Q51: 196 | R51: - | S51: =IF(AA51<0,"-",+返済条件入力!$C$6/返済条件入力!$C$10/12) -> - | T51: =IF(AA51<0,"-",ISPMT(返済条件入力!$C$8/12,Q51,返済条件入力!$C$10*12,返済条件入力!$C$6)) -> - | V51: 246 | W51: - | X51: =IF(Z51<0,"-",+返済条件入力!$C$6/返済条件入力!$C$10/12) -> - | Y51: =IF(Z51<0,"-",ISPMT(返済条件入力!$C$8/12,V51,返済条件入力!$C$10*12,返済条件入力!$C$6)) -> - | Z51: -126 | AA51: -76 | AB51: -26 | AC51: 24 | AD51: 74
B52: 47 | C52: 1086805.556 | D52: =IF(AD52<0,"-",+返済条件入力!$C$6/返済条件入力!$C$10/12) -> 833333.3333 | E52: =IF(AD52<0,"-",ISPMT(返済条件入力!$C$8/12,B52,返済条件入力!$C$10*12,返済条件入力!$C$6)) -> -253472.2222 | G52: 97 | H52: 913194.4444 | I52: =IF(AC52<0,"-",+返済条件入力!$C$6/返済条件入力!$C$10/12) -> 833333.3333 | J52: =IF(AC52<0,"-",ISPMT(返済条件入力!$C$8/12,G52,返済条件入力!$C$10*12,返済条件入力!$C$6)) -> -79861.11111 | L52: 147 | M52: - | N52: =IF(AB52<0,"-",+返済条件入力!$C$6/返済条件入力!$C$10/12) -> - | O52: =IF(AB52<0,"-",ISPMT(返済条件入力!$C$8/12,L52,返済条件入力!$C$10*12,返済条件入力!$C$6)) -> - | Q52: 197 | R52: - | S52: =IF(AA52<0,"-",+返済条件入力!$C$6/返済条件入力!$C$10/12) -> - | T52: =IF(AA52<0,"-",ISPMT(返済条件入力!$C$8/12,Q52,返済条件入力!$C$10*12,返済条件入力!$C$6)) -> - | V52: 247 | W52: - | X52: =IF(Z52<0,"-",+返済条件入力!$C$6/返済条件入力!$C$10/12) -> - | Y52: =IF(Z52<0,"-",ISPMT(返済条件入力!$C$8/12,V52,返済条件入力!$C$10*12,返済条件入力!$C$6)) -> - | Z52: -127 | AA52: -77 | AB52: -27 | AC52: 23 | AD52: 73
B53: 48 | C53: 1083333.333 | D53: =IF(AD53<0,"-",+返済条件入力!$C$6/返済条件入力!$C$10/12) -> 833333.3333 | E53: =IF(AD53<0,"-",ISPMT(返済条件入力!$C$8/12,B53,返済条件入力!$C$10*12,返済条件入力!$C$6)) -> -250000 | G53: 98 | H53: 909722.2222 | I53: =IF(AC53<0,"-",+返済条件入力!$C$6/返済条件入力!$C$10/12) -> 833333.3333 | J53: =IF(AC53<0,"-",ISPMT(返済条件入力!$C$8/12,G53,返済条件入力!$C$10*12,返済条件入力!$C$6)) -> -76388.88889 | L53: 148 | M53: - | N53: =IF(AB53<0,"-",+返済条件入力!$C$6/返済条件入力!$C$10/12) -> - | O53: =IF(AB53<0,"-",ISPMT(返済条件入力!$C$8/12,L53,返済条件入力!$C$10*12,返済条件入力!$C$6)) -> - | Q53: 198 | R53: - | S53: =IF(AA53<0,"-",+返済条件入力!$C$6/返済条件入力!$C$10/12) -> - | T53: =IF(AA53<0,"-",ISPMT(返済条件入力!$C$8/12,Q53,返済条件入力!$C$10*12,返済条件入力!$C$6)) -> - | V53: 248 | W53: - | X53: =IF(Z53<0,"-",+返済条件入力!$C$6/返済条件入力!$C$10/12) -> - | Y53: =IF(Z53<0,"-",ISPMT(返済条件入力!$C$8/12,V53,返済条件入力!$C$10*12,返済条件入力!$C$6)) -> - | Z53: -128 | AA53: -78 | AB53: -28 | AC53: 22 | AD53: 72
B54: 49 | C54: 1079861.111 | D54: =IF(AD54<0,"-",+返済条件入力!$C$6/返済条件入力!$C$10/12) -> 833333.3333 | E54: =IF(AD54<0,"-",ISPMT(返済条件入力!$C$8/12,B54,返済条件入力!$C$10*12,返済条件入力!$C$6)) -> -246527.7778 | G54: 99 | H54: 906250 | I54: =IF(AC54<0,"-",+返済条件入力!$C$6/返済条件入力!$C$10/12) -> 833333.3333 | J54: =IF(AC54<0,"-",ISPMT(返済条件入力!$C$8/12,G54,返済条件入力!$C$10*12,返済条件入力!$C$6)) -> -72916.66667 | L54: 149 | M54: - | N54: =IF(AB54<0,"-",+返済条件入力!$C$6/返済条件入力!$C$10/12) -> - | O54: =IF(AB54<0,"-",ISPMT(返済条件入力!$C$8/12,L54,返済条件入力!$C$10*12,返済条件入力!$C$6)) -> - | Q54: 199 | R54: - | S54: =IF(AA54<0,"-",+返済条件入力!$C$6/返済条件入力!$C$10/12) -> - | T54: =IF(AA54<0,"-",ISPMT(返済条件入力!$C$8/12,Q54,返済条件入力!$C$10*12,返済条件入力!$C$6)) -> - | V54: 249 | W54: - | X54: =IF(Z54<0,"-",+返済条件入力!$C$6/返済条件入力!$C$10/12) -> - | Y54: =IF(Z54<0,"-",ISPMT(返済条件入力!$C$8/12,V54,返済条件入力!$C$10*12,返済条件入力!$C$6)) -> - | Z54: -129 | AA54: -79 | AB54: -29 | AC54: 21 | AD54: 71
B55: 50 | C55: 1076388.889 | D55: =IF(AD55<0,"-",+返済条件入力!$C$6/返済条件入力!$C$10/12) -> 833333.3333 | E55: =IF(AD55<0,"-",ISPMT(返済条件入力!$C$8/12,B55,返済条件入力!$C$10*12,返済条件入力!$C$6)) -> -243055.5556 | G55: 100 | H55: 902777.7778 | I55: =IF(AC55<0,"-",+返済条件入力!$C$6/返済条件入力!$C$10/12) -> 833333.3333 | J55: =IF(AC55<0,"-",ISPMT(返済条件入力!$C$8/12,G55,返済条件入力!$C$10*12,返済条件入力!$C$6)) -> -69444.44444 | L55: 150 | M55: - | N55: =IF(AB55<0,"-",+返済条件入力!$C$6/返済条件入力!$C$10/12) -> - | O55: =IF(AB55<0,"-",ISPMT(返済条件入力!$C$8/12,L55,返済条件入力!$C$10*12,返済条件入力!$C$6)) -> - | Q55: 200 | R55: - | S55: =IF(AA55<0,"-",+返済条件入力!$C$6/返済条件入力!$C$10/12) -> - | T55: =IF(AA55<0,"-",ISPMT(返済条件入力!$C$8/12,Q55,返済条件入力!$C$10*12,返済条件入力!$C$6)) -> - | V55: 250 | W55: - | X55: =IF(Z55<0,"-",+返済条件入力!$C$6/返済条件入力!$C$10/12) -> - | Y55: =IF(Z55<0,"-",ISPMT(返済条件入力!$C$8/12,V55,返済条件入力!$C$10*12,返済条件入力!$C$6)) -> - | Z55: -130 | AA55: -80 | AB55: -30 | AC55: 20 | AD55: 70
